Cogmind - Beta 12 *** ADVENTURER MODE // 2023.10.08 @ 15:06:19 // Winter2019/RPGLIKE Player: Noname Result: Escaped! Performance ------------- Evolutions (9) 4500 Regions Visited (35) 7000 Robots Destroyed (532) 2660 Value Destroyed (34030) 34030 Prototype IDs (62) 1240 Alien Tech Used (1) 200 Bonus (23407) 23407 TOTAL SCORE: 73037 Bonus ------- High Alert Combat Kills 6253 Follower Combat Kills 8184 Entered Garrisons 1800 Used RIF Installer 5000 Entered DSFs 500 Aligned with FarCom 300 Win 3000 Friendly Fire -1630 Cogmind --------- Core Integrity 1150/1150 Matter 685/700 Energy 586/600 System Corruption 3% Temperature Cool (16) Movement Treading (160) Location To Epsilon Eridani Parts ------- > --- POWER (2) -------- Reinforced Quantum Reactor Reinforced Quantum Reactor > --- PROPULSION (6) --- Advanced Heavy Siege Treads Advanced Heavy Siege Treads Advanced Heavy Siege Treads > --- UTILITY (7) ------ Advanced Signal Interpreter Advanced Target Analyzer Improved Armor Integrity Analyzer Advanced Weapon Cycler Advanced Transmission Jammer Improved Thermal Defense Suite Relay Coupler [Sentry] (3) > --- WEAPON (6) ------- Enhanced Quantum Rifle Enhanced Quantum Rifle Improved KE Penetrator Hypervelocity Railgun Linear Accelerator Power Sword > --- INVENTORY (7) ---- Experimental Cooling System Advanced Phase Shifter Advanced Hardlight Generator Advanced Force Field Enhanced Quantum Rifle Hypervelocity Railgun Advanced Remote Datajack Peak State ------------ > --- POWER ------------ Reinforced Quantum Reactor Reinforced Quantum Reactor > --- PROPULSION ------- Advanced Heavy Siege Treads Advanced Heavy Siege Treads Advanced Heavy Siege Treads > --- UTILITY ---------- Advanced Target Analyzer Improved Armor Integrity Analyzer Advanced Weapon Cycler Advanced Transmission Jammer Advanced Phase Shifter Improved Thermal Defense Suite Relay Coupler [Sentry] > --- WEAPON ----------- Enhanced Quantum Rifle Enhanced Quantum Rifle Improved KE Penetrator Hypervelocity Railgun Linear Accelerator Advanced Remote Datajack > --- INVENTORY -------- Experimental Cooling System Advanced Phase Shifter Advanced Hardlight Generator Advanced Force Field Enhanced Quantum Rifle KE Penetrator Power Sword [Rating: 175] Favorites ----------- Power Reinforced Quantum Reactor Engine Reinforced Ion Engine Power Core Neutrino Core Reactor Reinforced Quantum Reactor Propulsion Advanced Heavy Treads Treads Advanced Heavy Treads Leg Improved Titanium Leg Wheel Armored Huge Wheel Flight Unit Improved VTOL Module Utility Relay Coupler [Sentry] Device Advanced Transmission Jammer Storage High-capacity Matter Pod Processor Improved Armor Integrity Analyzer Hackware Relay Coupler [Sentry] Protection Improved Medium Armor Plating Weapon Improved KE Penetrator Energy Gun Enhanced Quantum Rifle Energy Cannon Enhanced Nova Cannon Ballistic Gun Improved KE Penetrator Ballistic Cannon Heavy Mass Driver Launcher Improved Grenade Launcher Special Weapon Improved Remote Datajack Slashing Weapon Chainsword Piercing Weapon Lance Special Melee Weapon Datajack Build | -11 -10 -10 -9 -9 -9 -8 -8 -8 -8 -7 -7 -7 -7 -6 -6 -5 -5 -5 -5 -4 -4 -4 -4 -4 -4 -4 -4 -3 -3 -3 -3 -3 -2 -2 -1 ------- Run | Jun Mat Min Mat Min Exi Min Mat Sto Gar Fac Gar Fac Gar Fac Gar Fac Gar Fac Gar Fac Was Fac Gar Fac Upp Upp War Pro Res Gar Res Gar Res DSF Acc Slots Evolved 17 | 5 . 2 4 . . . 1 . 1 . . . . 2 . . . . . 1 . . . . . . . . . . . . . . 1 Power 1 | . . 1 . . . . . . . . . . . . . . . . . . . . . . . . . . . . . . . . . Propulsion 5 | 1 . 1 1 . . . 1 . . . . . . 1 . . . . . . . . . . . . . . . . . . . . . Utility 6 | 3 . . 1 . . . . . . . . . . 1 . . . . . . . . . . . . . . . . . . . . 1 Weapon 5 | 1 . . 2 . . . . . 1 . . . . . . . . . . 1 . . . . . . . . . . . . . . . Parts Attached 570 | 3 10 6 29 6 1 2 15 5 8 17 5 12 6 14 31 40 28 34 51 12 1 49 12 22 4 3 . 8 1 36 7 34 . 3 55 Power 59 | . 1 1 3 . . . 1 1 . 1 1 3 . . 4 1 3 8 5 . 1 2 1 3 . . . 1 . 7 2 2 . . 7 Engine 15 | . 1 . 3 . . . 1 . . 1 1 2 . . 2 . . 3 . . . . . . . . . 1 . . . . . . . Core 17 | . . 1 . . . . . 1 . . . 1 . . 2 1 2 5 3 . . . . . . . . . . . . 1 . . . Reactor 27 | . . . . . . . . . . . . . . . . . 1 . 2 . 1 2 1 3 . . . . . 7 2 1 . . 7 Propulsion 47 | 2 2 1 10 1 . . 3 1 . 1 . . . 3 . 1 2 3 4 2 . . . . . . . . . 2 . 6 . . 3 Treads 27 | . . . 8 . . . . . . . . . . . . . 1 3 4 2 . . . . . . . . . 2 . 4 . . 3 Leg 3 | . . 1 . 1 . . . . . . . . . 1 . . . . . . . . . . . . . . . . . . . . . Wheel 16 | 2 2 . 2 . . . 2 1 . 1 . . . 2 . 1 1 . . . . . . . . . . . . . . 2 . . . Hover . | . . . . . . . . . . . . . . . . . . . . . . . . . . . . . . . . . . . . Flight 1 | . . . . . . . 1 . . . . . . . . . . . . . . . . . . . . . . . . . . . . Utility 201 | . 6 2 8 4 1 1 8 2 7 6 4 3 3 3 8 15 12 14 8 5 . 23 2 6 . 2 . 2 1 9 1 12 . . 23 Device 126 | . 3 . 2 3 1 . 5 1 1 4 2 2 . 2 3 11 7 7 3 4 . 19 . 6 . 1 . 2 1 7 1 10 . . 18 Storage 5 | . 2 2 . . . . . . . . 1 . . . . . . . . . . . . . . . . . . . . . . . . Processor 16 | . 1 . 1 1 . . 1 . . 2 . . . . . 1 2 1 2 . . 1 . . . . . . . 1 . 1 . . 1 Hackware 25 | . . . . . . . . . 1 . 1 1 3 1 4 1 3 1 3 1 . . 2 . . . . . . 1 . . . . 2 Protection 29 | . . . 5 . . 1 2 1 5 . . . . . 1 2 . 5 . . . 3 . . . 1 . . . . . 1 . . 2 Artifact . | . . . . . . . . . . . . . . . . . . . . . . . . . . . . . . . . . . . . Weapon 263 | 1 1 2 8 1 . 1 3 1 1 9 . 6 3 8 19 23 11 9 34 5 . 24 9 13 4 1 . 5 . 18 4 14 . 3 22 Energy Gun 47 | . . . 1 . . . . 1 1 4 . 1 . 3 1 4 1 . 3 . . 3 . 6 2 . . . . 5 . . . . 11 Energy Cannon 25 | . . . 3 . . 1 . . . . . . 2 1 2 1 2 2 4 . . 5 . 1 . . . . . 1 . . . . . Ballistic Gun 44 | 1 1 . 2 . . . 1 . . 3 . . . 2 5 5 2 4 6 2 . 5 . 1 1 . . . . . . . . 1 2 Ballistic Cannon 7 | . . . . . . . . . . . . 1 . . . . 1 . 1 . . . . . . . . 1 . . . 2 . 1 . Launcher 4 | . . 1 1 1 . . 1 . . . . . . . . . . . . . . . . . . . . . . . . . . . . Special Weapon 66 | . . . . . . . . . . 1 . 2 . 2 5 7 3 1 9 2 . 5 5 2 1 1 . 2 . 7 1 5 . 1 4 Impact Weapon . | . . . . . . . . . . . . . . . . . . . . . . . . . . . . . . . . . . . . Slashing Weapon 39 | . . 1 . . . . 1 . . 1 . 2 1 . 6 4 . 1 . . . . . 1 . . . 2 . 5 3 7 . . 4 Piercing Weapon 28 | . . . . . . . . . . . . . . . . 2 2 1 11 . . 6 4 2 . . . . . . . . . . . Special Melee Weapon 3 | . . . 1 . . . . . . . . . . . . . . . . 1 . . . . . . . . . . . . . . 1 Unidentified Prototypes 28 | . . . 1 . . . 1 . . 2 . 3 . 1 1 3 . 1 . . 1 4 . . . . . 2 . 4 1 1 . . 2 Corrupted Parts 1 | . . . . . . . . . . . . . . 1 . . . . . . . . . . . . . . . . . . . . . System Corruption 4 | . . . . . . . . . . . . . . 4 . . . . . . . . . . . . . . . . . . . . . Parts Lost 2 | . . . . . . . . . . . . 1 . . . . . . . . . . . . . . 1 . . . . . . . . Power 1 | . . . . . . . . . . . . . . . . . . . . . . . . . . . 1 . . . . . . . . Propulsion . | . . . . . . . . . . . . . . . . . . . . . . . . . . . . . . . . . . . . Utility . | . . . . . . . . . . . . . . . . . . . . . . . . . . . . . . . . . . . . Weapon 1 | . . . . . . . . . . . . 1 . . . . . . . . . . . . . . . . . . . . . . . Highest Loss Streak 1 | . . . . . . . . . . . . 1 . . . . . . . . . . . . . . 1 . . . . . . . . To Critical Strikes . | . . . . . . . . . . . . . . . . . . . . . . . . . . . . . . . . . . . . Average Slot Usage (%) 83 | . 90 94 98 100 100 100 84 87 87 87 87 87 88 82 83 83 79 77 77 79 80 79 79 79 80 80 79 79 79 79 80 79 80 82 84 Engine 2 | . 11 9 13 13 13 13 12 10 5 7 11 9 5 5 . . . . . . . . . . . . . 4 5 . . . . . . Core 2 | . . 6 . . . . . 1 5 2 . . 5 5 9 10 7 4 4 . . . . . . . . . . . . . . . . Reactor 5 | . . . . . . . . . . . . . . . . . 2 5 5 10 10 9 9 9 10 10 9 5 5 9 10 9 10 10 9 Treads 9 | . . . 6 25 20 20 . . . . . . . . . . . 9 14 15 15 15 15 15 15 15 15 15 15 15 15 14 15 15 14 Wheel 6 | . 22 18 13 . . . 11 16 17 17 17 17 17 15 15 14 14 5 . . . . . . . . . . . . . . . . . Device 12 | . 13 18 15 13 13 13 12 12 11 14 16 11 9 4 4 10 12 13 8 4 5 9 15 14 15 15 15 14 14 13 15 16 20 20 16 Processor 6 | . 10 9 11 13 13 6 6 6 5 5 5 5 5 5 5 5 5 5 6 10 10 7 5 5 5 5 5 5 5 5 10 10 10 10 9 Hackware 8 | . . . . . . . . . 3 5 5 10 12 17 21 14 6 6 10 10 15 12 10 10 10 10 10 10 10 10 5 3 . . 4 Protection 1 | . . . 5 6 6 12 12 11 7 2 . . . . . . 5 5 5 4 . 1 . . . . . . . . . . . . . Energy Gun 4 | . . . . . . . . 1 10 7 5 5 5 5 10 6 . . . . . . 5 4 6 8 5 5 5 7 10 10 10 10 9 Energy Cannon 3 | . . . 12 6 6 6 12 10 5 5 5 1 2 1 . 1 2 . 3 5 5 5 5 5 5 5 5 5 5 2 . . . . . Ballistic Gun 8 | . 22 8 8 13 13 13 6 6 5 8 11 11 11 10 9 11 7 7 6 7 10 9 5 4 5 5 5 5 5 5 5 5 5 7 9 Ballistic Cannon 3 | . . . . . . . . . . . . . . . . . 3 5 5 5 5 5 5 5 5 5 5 5 5 5 5 5 5 4 4 Special Weapon 2 | . . . . . . . . . . . . 3 3 3 1 3 4 5 1 4 5 1 2 1 2 1 5 4 5 3 . 1 . 5 2 Slashing Weapon 1 | . . 2 1 . . . 1 6 5 5 5 5 4 5 4 1 . . . . . . . 1 1 . . . . 1 4 3 5 . 2 Naked Turns . | . . . . . . . . . . . . . . . . . . . . . . . . . . . . . . . . . . . . Heaviest Build 119 | 7 12 22 41 43 41 58 59 53 56 49 50 50 52 52 56 82 90 94 94 101 94 118 101 101 99 103 97 92 92 97 103 116 114 116 119 Greatest Support 245 | 26 26 26 86 86 66 66 66 68 68 68 68 68 68 84 96 89 89 215 215 215 215 215 215 215 215 215 215 215 215 230 230 240 240 240 245 Greatest Overweight (x) 2 | . . . 1 . . . 2 . . . . . . . . 1 1 1 . . . . . . . . . . . . . . . . . Average Overweight (x) . | . . . . . . . . . . . . . . . . . . . . . . . . . . . . . . . . . . . . Largest Inventory Capacity 7 | 1 1 2 4 5 5 6 6 6 6 6 6 6 6 6 6 6 7 7 7 7 7 7 7 7 7 7 7 7 7 7 7 7 7 7 7 Average Capacity 6 | . 1 1 3 4 5 5 6 6 6 6 6 6 6 6 6 6 6 7 7 7 7 7 7 7 7 7 7 7 7 7 7 7 7 7 7 Most Carried 7 | 1 1 2 4 5 5 6 6 6 6 6 6 6 6 6 6 6 7 7 7 7 7 7 7 7 7 7 7 7 7 7 7 7 7 7 7 Average Carried 6 | . 1 1 3 4 4 5 5 6 5 5 5 5 5 5 5 5 6 6 6 6 7 6 7 7 7 7 7 7 7 6 7 6 7 7 6 Final Capacity 7 | 1 1 2 4 5 5 6 6 6 6 6 6 6 6 6 6 6 7 7 7 7 7 7 7 7 7 7 7 7 7 7 7 7 7 7 7 Final Carried 7 | 1 1 2 4 5 5 6 6 6 6 6 6 6 6 6 6 6 7 7 7 7 7 7 7 7 7 7 7 7 7 7 7 7 7 7 7 Class Distribution -------------------- 26% | Hacker-Assassin 12% | Hacker-Executioner 12% | Mutant 8% | Hacker-Mutant 6% | Bothacker-Gunner 6% | Commander-Assassin 6% | Hacker-Gunner 4% | Bothacker-Mutant 3% | Commander-Mutant 3% | Gunner Dominant Class ---------------- Mutant | -10/Materials Mutant | -10/Mines Mutant | -9/Materials Scavenger-Gunner | -9/Mines Mutant | -9/Exiles Gunner | -8/Mines Mutant | -8/Materials Commander-Mutant | -8/Storage Commander-Mutant | -8/Garrison Gunner | -7/Factory Mutant | -7/Garrison Hacker-Mutant | -7/Factory Bothacker-Mutant | -7/Garrison Bothacker-Gunner | -6/Factory Bothacker-Assassin | -6/Garrison Bothacker-Gunner | -5/Factory Commander-Assassin | -5/Garrison Hacker-Gunner | -5/Factory Hacker-Assassin | -5/Garrison Hacker-Assassin | -4/Factory Hacker-Executioner | -4/Waste Hacker-Assassin | -4/Factory Hacker-Assassin | -4/Garrison Hacker-Assassin | -4/Factory Hacker-Executioner | -4/Upper Caves Hacker-Executioner | -4/Upper Caves Hacker-Executioner | -4/Warlord Hacker-Gunner | -3/Proximity Caves Hacker-Executioner | -3/Research Hacker-Executioner | -3/Garrison Hacker-Assassin | -3/Research Hacker-Assassin | -3/Garrison Commander-Assassin | -2/Research Hacker-Executioner | -2/DSF Hacker-Assassin | -1/Access Resources | -11 -10 -10 -9 -9 -9 -8 -8 -8 -8 -7 -7 -7 -7 -6 -6 -5 -5 -5 -5 -4 -4 -4 -4 -4 -4 -4 -4 -3 -3 -3 -3 -3 -2 -2 -1 ----------- Run | Jun Mat Min Mat Min Exi Min Mat Sto Gar Fac Gar Fac Gar Fac Gar Fac Gar Fac Gar Fac Was Fac Gar Fac Upp Upp War Pro Res Gar Res Gar Res DSF Acc Matter Collected 18702 | 230 342 153 473 187 . 199 231 189 239 265 40 165 316 644 848 919 1061 1250 1543 433 . 1964 753 801 169 328 . 260 . 1137 383 1538 . 168 1474 Remotely 58 | . . . . . . . . . . . . . . 10 . . . . . . . 20 . . . . . . . . . . . . 28 Salvage Created 26338 | . 185 216 1106 189 . 293 515 23 628 354 315 56 878 658 1640 856 1708 903 1773 647 . 2349 1362 1087 196 719 . 495 . 1753 715 2256 . 325 2138 Parts 1316 | . 23 12 80 14 . 25 32 8 28 34 16 9 52 67 52 50 51 48 77 35 . 95 54 70 5 25 . 14 . 56 22 98 . 13 151 Haulers Intercepted 1 | . . . . . . . . . . . . . . . . . . 1 . . . . . . . . . . . . . . . . . Recyclers Shooed 3 | . . . . . . . . 1 . . . . . . . 1 . 1 . . . . . . . . . . . . . . . . . Parts Field Recycled . | . . . . . . . . . . . . . . . . . . . . . . . . . . . . . . . . . . . . Retrieved Matter . | . . . . . . . . . . . . . . . . . . . . . . . . . . . . . . . . . . . . Parts Self-Destructed 54 | . . . . . . . . . . . . . . . . . . . . . . . . . 8 35 . 11 . . . . . . . Prevented 4 | . . . . . . . . . . . . . . . . . . . . . . . . . 2 . . 2 . . . . . . . Kills | -11 -10 -10 -9 -9 -9 -8 -8 -8 -8 -7 -7 -7 -7 -6 -6 -5 -5 -5 -5 -4 -4 -4 -4 -4 -4 -4 -4 -3 -3 -3 -3 -3 -2 -2 -1 ------- Run | Jun Mat Min Mat Min Exi Min Mat Sto Gar Fac Gar Fac Gar Fac Gar Fac Gar Fac Gar Fac Was Fac Gar Fac Upp Upp War Pro Res Gar Res Gar Res DSF Acc Combat Hostiles Destroyed 452 | . 10 10 28 14 . 13 8 2 14 9 . 2 26 22 9 10 15 14 25 10 1 27 23 28 3 14 . 5 . 29 8 38 . 5 30 Melee 15 | . . 2 1 . . . . . 2 . . 1 1 1 . 1 2 . 1 1 . 1 . . . . . . . . . 1 . . . Guns 229 | . 10 1 7 1 . 3 3 . 11 9 . 1 18 20 9 7 8 6 13 3 . 6 8 8 1 4 . 2 . 10 6 27 . 2 25 Cannons 160 | . . . 17 3 . 2 4 2 . . . . . . . 2 5 8 11 5 1 18 14 19 2 10 . 3 . 14 2 10 . 3 5 AOE 38 | . . 7 3 10 . 8 . . 1 . . . 7 1 . . . . . 1 . . . . . . . . . . . . . . . Classes Destroyed 26 | . 2 . 4 1 . 2 2 . . 1 . . . 3 . . 1 3 . 1 1 2 . 1 . . . 1 . . . . . . 1 Worker 11 | . . . . . . 2 . . . . . . . . . 1 . 3 . . . 4 . . . . . . . . . . . . 1 Builder 6 | . . . . . . . 2 . . . . . . . . 1 . 2 . . . 1 . . . . . . . . . . . . . Tunneler 2 | . . . . . . 1 1 . . . . . . . . . . . . . . . . . . . . . . . . . . . . Hauler 1 | . . . . . . . . . . . . . . . . . . 1 . . . . . . . . . . . . . . . . . Recycler 5 | . . . . . . . 1 . . 1 . . . . . . . . . . . 2 . . . . . . . . . . . . 1 Carrier 3 | . . . . . . . . . . . . . . . . . . . . . . . . 1 . . . . . . 2 . . . . Mechanic 1 | . . . . . . . . . . . . . . . . . . . . . . . . . . . . . . . . . . . 1 Operator 2 | . . . . . . . . . . . . . . . . . . 1 . . . . . . . . . . . . . . . . 1 Drone 2 | . . . . . . . . . . . . . . . . . . . . . . . . . . . . 2 . . . . . . . Watcher 47 | . . . 4 . . . 3 1 2 2 . . . 2 . 6 . 2 1 5 . 6 . 4 . . . . . . . . . . 9 Swarmer 101 | . 9 6 3 4 . 4 4 . 5 . . . 16 6 2 . 3 . 4 . . . 8 5 . 3 . . . 6 . 11 . 2 . Cutter 5 | . . . . . . . . . . . . . . . . . 2 . 3 . . . . . . . . . . . . . . . . Saboteur 4 | . . . . . . . . . . . . . . . . . . . . . . 1 3 . . . . . . . . . . . . Grunt 145 | . 1 4 12 5 . 7 3 1 3 5 . 1 8 4 5 . 9 5 7 2 . 3 4 10 . 8 . . . 15 3 16 . . 4 Brawler 18 | . . . 2 . . . . . 2 . . . . 2 1 1 2 . . 3 . 1 2 2 . . . . . . . . . . . Duelist 11 | . . . 2 . . 2 . . . . . . . 1 . . . . . . . 1 . 2 . 2 . . . . . 1 . . . Protector 3 | . . . . . . . . . . . . . . 1 . . . . . . . . . 2 . . . . . . . . . . . Sentry 42 | . . . 9 . . . 1 1 4 2 . 1 2 3 . 2 . 1 2 1 . 7 2 1 . . . 1 . . . 1 . . 1 Demolisher 1 | . . . . . . . . . . . . . . . . . . . . 1 . . . . . . . . . . . . . . . Specialist 10 | . . . . . . . . . . . . . . 2 . . 1 . . . . . . 1 . . . 1 . 3 . . . 2 . Hunter 32 | . . . . . . . . . . . . . . 1 1 1 . 2 3 2 . 4 . 2 . 1 . . . 1 2 2 . . 10 Programmer 68 | . . . . . . . . . . 2 . . . 3 . 6 2 5 5 1 . 9 3 3 2 . . 1 . 4 2 5 . . 15 Heavy 2 | . . . . . . . . . . . . . . . . . . . . . . 1 . . . . . . . . . . . 1 . Behemoth 7 | . . . . . . . . . . . . . . . . . . 1 1 . . . 1 . 1 . . . . . 1 2 . . . Compactor 1 | . . . . . . . . . . . . . . . . . . . . . 1 . . . . . . . . . . . . . . Assembled 5 | . . . . 5 . . . . . . . . . . . . . . . . . . . . . . . . . . . . . . . Thug 1 | . . . . . . . . . . . . 1 . . . . . . . . . . . . . . . . . . . . . . . Butcher 1 | . . . . . . . . . . . . . . . . . . . . . . . 1 . . . . . . . . . . . . Best Kill Streak 13 | . 3 5 3 5 . 5 13 1 3 5 . 1 8 5 3 2 3 7 4 8 1 6 5 5 2 7 . 2 . 5 5 10 . 3 6 Combat Bots Only 10 | . 3 5 3 5 . 4 8 1 3 5 . 1 8 5 3 2 3 4 4 8 1 5 5 5 2 7 . 2 . 5 2 10 . 3 6 Max Kills in Single Turn 3 | . 2 3 3 2 . 3 2 1 2 1 . 2 3 1 1 1 3 3 2 3 1 3 1 3 1 1 . 1 . 2 2 3 . 2 2 Gunslinging 2 | . 1 . . . . . . . 1 . . . 1 . . . . . 1 . . . . . . . . . . . . 2 . . . Exploded 3 | . . 3 3 2 . 2 . . 1 . . . 2 1 . . . . . 1 . . . . . . . . . . . . . . . Melee 1 | . . 1 1 . . . . . 1 . . 1 1 1 . 1 1 . 1 1 . 1 . . . . . . . . . 1 . . . Uniques/NPCs Destroyed . | . . . . . . . . . . . . . . . . . . . . . . . . . . . . . . . . . . . . Combat | -11 -10 -10 -9 -9 -9 -8 -8 -8 -8 -7 -7 -7 -7 -6 -6 -5 -5 -5 -5 -4 -4 -4 -4 -4 -4 -4 -4 -3 -3 -3 -3 -3 -2 -2 -1 -------- Run | Jun Mat Min Mat Min Exi Min Mat Sto Gar Fac Gar Fac Gar Fac Gar Fac Gar Fac Gar Fac Was Fac Gar Fac Upp Upp War Pro Res Gar Res Gar Res DSF Acc Damage Taken 15065 | . 250 114 646 461 . 128 212 88 546 350 . 218 812 826 394 683 484 589 890 376 . 1384 686 426 146 232 138 52 . 1344 211 1013 . 103 1263 Core 11419 | . 203 89 459 302 . 89 149 61 382 223 . 163 627 656 334 540 368 449 667 250 . 1045 534 328 121 181 88 40 . 1051 162 793 . 80 985 Absorbed by Shields 609 | . . . . . . . . . 12 . . . . . . . . . . . . 112 6 . . . . . . 195 . 165 . 106 13 Reduced by Siege Mode 11 | . . . . . . . . . . . . . . . . . . . 4 3 . . . . . . . . . . 2 2 . . . Redirected to Core 10180 | . 132 85 388 290 . 77 119 41 315 206 . 160 569 556 214 463 334 373 573 225 . 1015 504 314 91 168 88 40 . 968 162 712 . 80 918 Redirected to Shielding 63 | . . . . . . . . . 10 53 . . . . . . . . . . . . . . . . . . . . . . . . . Regen/Repaired (Parts) 299 | . . . . . . . . . . . . . . 41 . 134 . . . . . . . 124 . . . . . . . . . . . Core Remaining (%) 96 | 100 . 89 . . . 84 . . 92 . . . 95 . 100 . . . 100 . . . . . . . . 100 . . . 100 . 100 100 Volleys Fired 1105 | . 29 5 61 10 . 15 20 11 28 23 . 6 45 59 41 52 65 60 67 21 2 66 57 46 6 21 . 16 . 82 17 89 . 9 76 Largest 5 | . 2 1 4 4 . 3 3 2 3 3 . 3 3 4 4 4 4 3 3 4 4 4 4 4 5 5 . 4 . 4 4 4 . 5 5 Hottest 342 | . 40 33 189 150 . 114 153 93 157 174 . 76 76 141 209 214 198 143 198 233 233 263 254 254 342 342 . 254 . 254 238 238 . 269 269 Shots Fired 2925 | . 58 5 140 23 . 28 42 20 71 64 . 16 91 152 112 146 129 118 140 60 8 211 138 150 25 71 . 48 . 221 56 272 . 27 283 Gun 1870 | . 58 2 53 12 . 13 19 11 68 64 . 15 76 141 95 121 68 57 67 27 4 114 58 78 13 32 . 24 . 111 40 203 . 18 208 Cannon 786 | . . . 85 6 . 7 22 9 3 . . . 9 1 5 8 30 35 47 28 4 90 52 67 11 36 . 20 . 81 13 52 . 7 58 Launcher 19 | . . 3 2 5 . 8 1 . . . . . . . . . . . . . . . . . . . . . . . . . . . . Special 250 | . . . . . . . . . . . . 1 6 10 12 17 31 26 26 5 . 7 28 5 1 3 . 4 . 29 3 17 . 2 17 Kinetic 1583 | . 58 2 47 12 . 13 19 10 24 30 . 10 47 94 48 82 75 92 106 43 6 156 51 65 11 33 . 20 . 92 27 123 . 15 172 Thermal 1009 | . . . 91 6 . 7 19 10 44 34 . 5 29 45 23 33 20 . 8 12 2 48 59 80 13 35 . 24 . 100 26 132 . 10 94 Explosive 18 | . . 3 2 5 . 8 . . . . . . . . . . . . . . . . . . . . . . . . . . . . . Electromagnetic 65 | . . . . . . . 4 . 3 . . . 9 3 29 14 3 . . . . . . . . . . . . . . . . . . Robot Hit Streak 107 | . 16 6 19 22 . 26 21 18 37 47 . 21 24 86 71 90 23 51 60 38 28 37 85 40 49 37 . 14 . 107 68 81 . 16 78 Robot Miss Streak 2 | . 1 . 2 2 . 1 1 . 1 1 . 1 1 1 1 1 2 1 1 1 . 2 1 1 . 1 . 1 . 1 1 1 . 1 2 Penetration Max 2 | . . . . . . . . . . . . . . . 1 2 1 1 1 1 . 1 . 1 . 1 . . . 1 1 1 . . 1 Secondary Targets 20 | . 2 . . . . . . . 2 1 . . 5 3 2 1 . . 1 . . . . . . . . . . . . 3 . . . Max Gunslinging Chain 2 | . 1 . . . . . . . 1 1 . . 1 1 1 1 . . 1 . . . . . . . . . . . . 2 . . . Shots Hit Robots 2450 | . 46 7 98 13 . 24 24 16 88 54 21 13 68 130 173 116 120 101 138 52 8 151 102 97 21 48 . 28 . 205 40 224 . 22 202 Core Hits 1024 | . 16 10 46 21 . 33 22 5 32 23 8 6 64 52 61 38 48 31 58 27 2 60 37 51 6 20 . 8 . 56 14 77 . 8 84 Critical Kills 42 | . . . . 1 . . 1 . 1 . . . . . 1 2 1 1 . . . 4 1 4 . . . . . 4 . 5 . 1 15 Critical Parts Destroyed 41 | . 1 . . . . . . . . . . . . 1 . 3 3 1 . 2 . 5 . 2 . . . . . 1 . 10 . . 12 Critical Strikes 166 | . 1 . . 1 . . 1 . 7 2 . 2 4 3 5 6 12 8 9 4 . 12 3 6 2 2 . 2 . 12 4 20 . 3 35 Burn 16 | . . . . . . . . . 3 2 . 1 2 2 . 1 . . . . . . 1 . 2 . . 1 . 1 . . . . . Meltdown 9 | . . . . . . . 1 . . . . . . . . . . . . . . 2 1 2 . . . . . 3 . . . . . Destroy 75 | . 1 . . 1 . . . . 1 . . . . 1 1 5 4 2 . 2 . 7 . 4 . . . . . 2 1 15 . 1 27 Blast 39 | . . . . . . . . . . . . . . . . . . 6 5 2 . 3 1 . . 2 . 1 . 1 3 5 . 2 8 Sever 15 | . . . . . . . . . 3 . . 1 2 . 4 . . . . . . . . . . . . . . 5 . . . . . Impale 12 | . . . . . . . . . . . . . . . . . 8 . 4 . . . . . . . . . . . . . . . . Melee Attacks 511 | . . 4 2 . . . 5 9 42 18 28 14 24 7 95 11 44 4 54 2 . 28 10 14 . . . 2 . 24 7 35 . . 28 Impact . | . . . . . . . . . . . . . . . . . . . . . . . . . . . . . . . . . . . . Slashing 351 | . . 4 1 . . . 5 9 42 18 28 14 24 7 95 4 . . . . . . . 4 . . . 2 . 24 7 35 . . 28 Piercing 159 | . . . . . . . . . . . . . . . . 7 44 4 54 2 . 28 10 10 . . . . . . . . . . . Sneak Attacks 5 | . . . . . . . . . . 1 . . . . . . 4 . . . . . . . . . . . . . . . . . . Combat Hostiles 4 | . . . . . . . . . . . . . . . . . 4 . . . . . . . . . . . . . . . . . . Follow-up Attacks . | . . . . . . . . . . . . . . . . . . . . . . . . . . . . . . . . . . . . Damage Inflicted 87387 | . 423 528 2386 836 . 1547 902 338 2535 1172 1663 379 2004 2775 7005 3289 4656 3514 5553 2375 339 6776 3229 3936 930 1919 . 1054 . 7888 1561 8769 . 979 6127 Guns 38164 | . 423 29 611 71 . 127 204 155 1093 1071 . 274 1135 2538 1627 2749 1346 1673 1422 702 101 2329 1138 1502 343 577 . 417 . 2916 1010 5245 . 516 4820 Cannons 28666 | . . . 1453 103 . 144 306 183 5 . . . 29 6 6 310 1053 1831 2054 1425 238 4279 1774 2434 587 1342 . 637 . 3764 551 2382 . 463 1307 Explosions 5112 | . . 424 282 662 . 1276 392 . 173 . . . 664 197 299 137 431 . . 175 . . . . . . . . . . . . . . . Melee 15431 | . . 75 36 . . . . . 1264 101 1663 105 176 34 5073 93 1826 . 2077 73 . 168 317 . . . . . . 1208 . 1142 . . . Ramming 14 | . . . 4 . . . . . . . . . . . . . . 10 . . . . . . . . . . . . . . . . . Kinetic 37956 | . 423 29 523 71 . 127 204 155 362 479 . 174 702 1587 908 1852 1663 3504 3133 1666 255 4303 1180 1267 470 884 . 346 . 3286 840 3899 . 641 3023 Thermal 29164 | . . . 1541 103 . 300 306 183 731 592 . 100 433 978 518 1090 1032 . 343 636 84 2305 1732 2669 460 1035 . 708 . 3394 721 3728 . 338 3104 Explosive 2488 | . . 424 282 662 . 1120 . . . . . . . . . . . . . . . . . . . . . . . . . . . . . Electromagnetic 2334 | . . . . . . . 392 . 178 . . . 693 176 506 254 135 . . . . . . . . . . . . . . . . . . Impact . | . . . . . . . . . . . . . . . . . . . . . . . . . . . . . . . . . . . . Slashing 10877 | . . 75 36 . . . . . 1264 101 1663 105 176 34 5073 . . . . . . . . . . . . . . 1208 . 1142 . . . Piercing 4554 | . . . . . . . . . . . . . . . . 93 1826 . 2077 73 . 168 317 . . . . . . . . . . . . Highest Corruption 15 | . . . . . . . 7 7 14 6 1 1 14 7 15 4 10 11 14 . . 2 2 3 4 4 4 . . 3 3 3 . . 3 Average Corruption 5 | . . . . . . . 6 7 8 2 1 1 8 5 12 1 8 10 13 . . 1 2 2 3 4 4 . . 2 3 3 . . 2 Corruption Purged 5 | . . . . . . . . . . 5 . . . . . . . . . . . . . . . . . . . . . . . . . Corruption Blocked . | . . . . . . . . . . . . . . . . . . . . . . . . . . . . . . . . . . . . Effects 694 | . . . . . . . 15 14 31 14 6 7 28 6 64 7 66 67 87 . . 12 22 49 24 29 2 . . 33 7 49 . . 55 Message Errors 176 | . . . . . . . 1 4 9 4 1 5 6 1 15 3 22 20 18 . . 2 2 11 6 8 . . . 7 1 13 . . 17 Matter Fused 170 | . . . . . . . 7 6 7 1 1 2 12 . 18 1 19 14 18 . . 4 4 15 5 4 1 . . 14 1 7 . . 9 Heat Flow Errors 73 | . . . . . . . 2 1 4 3 . . 1 1 5 1 4 7 11 . . 2 5 5 2 3 1 . . 1 2 4 . . 8 Energy Discharges 77 | . . . . . . . 1 . 1 2 2 . 1 3 8 2 8 4 12 . . 1 4 4 3 3 . . . 2 . 11 . . 5 Parts Rejected 6 | . . . . . . . . . 1 . . . . . 1 . . . 3 . . . . . . . . . . 1 . . . . . Parts Fused 6 | . . . . . . . . 1 . . . . . . . . . 2 . . . 1 . 1 . 1 . . . . . . . . . Data Loss (minor) 96 | . . . . . . . 2 1 5 1 1 . 6 . 9 . 11 9 10 . . 1 1 7 3 7 . . . 3 1 9 . . 9 Data Loss (major) 36 | . . . . . . . 2 . 1 3 1 . . . 4 . 2 1 5 . . 1 2 1 1 . . . . 4 2 3 . . 3 Misfires 20 | . . . . . . . . . 1 . . . . . 1 . . 7 1 . . . 2 2 2 2 . . . . . . . . 2 Alerts 16 | . . . . . . . . . . . . . 2 1 2 . . 2 4 . . . 1 . 2 . . . . 1 . . . . 1 Misdirections 1 | . . . . . . . . . . . . . . . . . . . 1 . . . . . . . . . . . . . . . . Weapon Failures 17 | . . . . . . . . 1 2 . . . . . 1 . . 1 4 . . . 1 3 . 1 . . . . . 2 . . 1 Overload Shots 3 | . . . . . . . . . . . . . 3 . . . . . . . . . . . . . . . . . . . . . . Overflow Damage 3785 | . . 8 2 2 . 20 11 . 64 . 253 . . . 470 12 355 114 344 131 . 559 101 107 41 116 . 104 . 362 122 286 . 9 192 Projectiles 2225 | . . . . . . . 5 . . . . . . . . . 31 114 137 131 . 524 101 107 41 116 . 104 . 286 122 205 . 9 192 Explosions 78 | . . 8 2 2 . 20 6 . . . . . . . . 12 28 . . . . . . . . . . . . . . . . . . Melee 1482 | . . . . . . . . . 64 . 253 . . . 470 . 296 . 207 . . 35 . . . . . . . 76 . 81 . . . Knockbacks 67 | . . . . . . . . . . . . . . . . . 2 3 6 . . 9 . 4 1 3 . 1 . 17 2 11 . . 8 Impact . | . . . . . . . . . . . . . . . . . . . . . . . . . . . . . . . . . . . . Kinetic 62 | . . . . . . . . . . . . . . . . . 2 3 6 . . 8 . 3 1 3 . 1 . 15 2 10 . . 8 Secondary 5 | . . . . . . . . . . . . . . . . . . . . . . 1 . 1 . . . . . 2 . 1 . . . Self-Inflicted Damage 158 | . . . 2 8 . . 19 . 28 . . . . 8 24 53 16 . . . . . . . . . . . . . . . . . . Shots 8 | . . . . 1 . . 1 . 1 . . . . 1 1 2 1 . . . . . . . . . . . . . . . . . . Rammed 2 | . . . 1 . . . . . . . . . . . . . . 1 . . . . . . . . . . . . . . . . . Targets Rammed 2 | . . . 1 . . . . . . . . . . . . . . 1 . . . . . . . . . . . . . . . . . Kicked . | . . . . . . . . . . . . . . . . . . . . . . . . . . . . . . . . . . . . Crushed . | . . . . . . . . . . . . . . . . . . . . . . . . . . . . . . . . . . . . Highest Temperature 535 | . 12 . 477 15 . 87 246 138 203 211 . 255 81 122 535 436 503 260 335 159 28 432 226 225 223 402 331 135 . 240 145 158 . 48 252 Average Temperature 80 | . 8 . 142 8 . 35 51 36 71 59 . 159 46 40 117 98 126 53 83 44 17 98 72 46 85 94 160 52 . 46 11 25 . 36 67 Received Heat Transfer 3906 | . 30 69 354 84 . 81 72 45 366 138 . 93 309 312 150 114 153 102 219 54 . 106 135 135 9 30 . 9 . 295 18 289 . . 135 Effects 35 | . . . 13 . . . . . . . . . . . 5 3 1 . . . . 4 4 . . 2 . . . 3 . . . . . Shutdowns 10 | . . . 4 . . . . . . . . . . . 1 2 1 . . . . 2 . . . . . . . . . . . . . Energy Bleed 2 | . . . 1 . . . . . . . . . . . . . . . . . . . . . . 1 . . . . . . . . . Interference 17 | . . . 6 . . . . . . . . . . . 3 . . . . . . . 4 . . 1 . . . 3 . . . . . Matter Decay 4 | . . . 1 . . . . . . . . . . . 1 1 . . . . . 1 . . . . . . . . . . . . . Short Circuit 1 | . . . 1 . . . . . . . . . . . . . . . . . . . . . . . . . . . . . . . . Damage (minor) 1 | . . . . . . . . . . . . . . . . . . . . . . 1 . . . . . . . . . . . . . Siege Activations 9 | . . . . . . . . . . . . . . . . . . 1 1 1 . 1 . . 1 . . . . . 1 2 . 1 . Total Turns 76 | . . . . . . . . . . . . . . . . . . 2 8 44 . 2 . . 3 . . . . . 5 10 . 2 . Longest Duration 44 | . . . . . . . . . . . . . . . . . . 2 8 44 . 2 . . 3 . . . . . 5 5 . 2 . Robots Corrupted . | . . . . . . . . . . . . . . . . . . . . . . . . . . . . . . . . . . . . Combat Hostiles . | . . . . . . . . . . . . . . . . . . . . . . . . . . . . . . . . . . . . Parts Fried 8 | . . . . . . . 1 . . . . . 2 . . 4 1 . . . . . . . . . . . . . . . . . . Impact Corruptions 1 | . . . . . . . . . . . . . . . . . . . . . . . . 1 . . . . . . . . . . . Robots Melted 12 | . . . . . . . 1 . . . . . . . . . . . . . . 2 2 2 . . . . . 5 . . . . . Combat Hostiles 10 | . . . . . . . 1 . . . . . . . . . . . . . . 2 1 1 . . . . . 5 . . . . . Parts Melted 89 | . . . 4 . . . 1 2 6 8 . . 2 3 . . . . . . . 9 6 15 1 . . 1 . 18 . 7 . . 6 Heat Transferred 31539 | . . . 2516 185 . 409 555 333 1624 1296 . 259 925 1838 683 1088 250 . . 200 . 1739 1737 2441 555 962 . 740 . 3210 777 3739 . 370 3108 Parts Sabotaged 4 | . . . . . . . . . . . . . . . . . . . . . . . 1 3 . . . . . . . . . . . Parts Stolen . | . . . . . . . . . . . . . . . . . . . . . . . . . . . . . . . . . . . . Parts Stripped . | . . . . . . . . . . . . . . . . . . . . . . . . . . . . . . . . . . . . Power Chain Reactions 4 | . . . . . . . . . . . . . . . 1 1 1 . . 1 . . . . . . . . . . . . . . . Missiles Intercepted . | . . . . . . . . . . . . . . . . . . . . . . . . . . . . . . . . . . . . Latent Energy Used 1591 | . . . . . . . 263 . 243 . . . 443 200 274 . 168 . . . . . . . . . . . . . . . . . . LE Corruption 41 | . . . . . . . 6 . 6 . . . 13 3 8 . 5 . . . . . . . . . . . . . . . . . . Alert | -11 -10 -10 -9 -9 -9 -8 -8 -8 -8 -7 -7 -7 -7 -6 -6 -5 -5 -5 -5 -4 -4 -4 -4 -4 -4 -4 -4 -3 -3 -3 -3 -3 -2 -2 -1 ------- Run | Jun Mat Min Mat Min Exi Min Mat Sto Gar Fac Gar Fac Gar Fac Gar Fac Gar Fac Gar Fac Was Fac Gar Fac Upp Upp War Pro Res Gar Res Gar Res DSF Acc Peak Influence 2323 | . 222 321 492 189 . 221 437 249 805 542 426 440 1157 957 1483 888 1866 1096 1592 1095 279 663 1222 898 . . . . . 1706 1068 2323 1140 936 517 Initial 1138 | . . 37 39 68 . . 65 87 28 365 66 193 27 525 380 674 395 848 57 724 279 170 85 555 . . . . . . 835 652 1138 758 491 Average 602 | . 64 160 312 102 . 85 270 130 471 358 223 180 607 719 1030 680 1210 547 865 892 275 256 650 640 . . . . . 973 905 1538 1138 871 103 Maximum Alert Level 5 | . 1 1 2 . . 1 2 1 3 2 2 2 4 3 4 3 5 3 4 3 1 2 4 3 . . . . . 5 3 5 4 3 2 Low Security (%) 25 | 100 89 84 15 100 . 91 24 68 14 12 60 64 22 . . . . 13 1 . . 41 6 . . . . . 100 7 . . . . 81 Level 1 14 | . 10 15 50 . . 8 44 31 14 36 30 27 12 . 1 . 4 13 13 . 100 44 10 5 . . . . . 15 . . . . 9 Level 2 23 | . . . 34 . . . 31 . 55 51 9 8 29 33 22 57 15 43 15 . . 14 36 59 . . . . . 13 . 1 . . 9 Level 3 20 | . . . . . . . . . 15 . . . 21 66 22 42 14 29 34 100 . . 36 35 . . . . . 13 100 13 . 100 . Level 4 11 | . . . . . . . . . . . . . 14 . 52 . 49 . 34 . . . 9 . . . . . . 36 . 34 100 . . Level 5 4 | . . . . . . . . . . . . . . . . . 14 . . . . . . . . . . . . 13 . 51 . . . High Security . | . . . . . . . . . . . . . . . . . . . . . . . . . . . . . . . . . . . . Max Security . | . . . . . . . . . . . . . . . . . . . . . . . . . . . . . . . . . . . . Sterilizations 1 | . . . . . . . . . . . . . . . . . . . . . . . . . . . . . . . . . . 1 . Squads Dispatched 86 | . . . 2 . . . . 1 . 2 . 4 . 9 . 13 . 9 . 3 . 12 . 12 . . . . . . 6 . . 1 12 Investigation 13 | . . . . . . . . . . . . . . 1 . 3 . 3 . . . 1 . 1 . . . . . . . . . . 4 Extermination 30 | . . . . . . . . . . 2 . 1 . 2 . 4 . 4 . 1 . 5 . 4 . . . . . . 1 . . . 6 Reinforcement 15 | . . . 2 . . . . . . . . . . 3 . . . 2 . 1 . 1 . 3 . . . . . . . . . 1 2 Assault 15 | . . . . . . . . . . . . . . 3 . 2 . . . 1 . 1 . 4 . . . . . . 4 . . . . Garrison 13 | . . . . . . . . 1 . . . 3 . . . 4 . . . . . 4 . . . . . . . . 1 . . . . Intercept . | . . . . . . . . . . . . . . . . . . . . . . . . . . . . . . . . . . . . Searches Triggered . | . . . . . . . . . . . . . . . . . . . . . . . . . . . . . . . . . . . . Construction Impeded 1 | . . . . . . . . . . . . . . . . . . 1 . . . . . . . . . . . . . . . . . Haulers Reinforced 4 | . . . . . . . . . . . . . . . . . . . . 1 . . . 2 . . . . . . . . . . 1 Active Scanning Responses . | . . . . . . . . . . . . . . . . . . . . . . . . . . . . . . . . . . . . Cargo Convoy Interrupts . | . . . . . . . . . . . . . . . . . . . . . . . . . . . . . . . . . . . . Stealth | -11 -10 -10 -9 -9 -9 -8 -8 -8 -8 -7 -7 -7 -7 -6 -6 -5 -5 -5 -5 -4 -4 -4 -4 -4 -4 -4 -4 -3 -3 -3 -3 -3 -2 -2 -1 --------- Run | Jun Mat Min Mat Min Exi Min Mat Sto Gar Fac Gar Fac Gar Fac Gar Fac Gar Fac Gar Fac Was Fac Gar Fac Upp Upp War Pro Res Gar Res Gar Res DSF Acc Distress Signals 13 | . 2 . 1 . . . 1 1 1 . . . . 2 . . . . . 1 . 2 . . . . . . . . . . . . 2 Communications Jammed 54 | . . . . . . . . . . . . . . . . . . 5 . 8 . 11 . 6 . . . 2 . . . . . 1 21 Distress Signals 45 | . . . . . . . . . . . . . . . . . . 3 . 8 . 10 . 6 . . . . . . . . . . 18 Times Spotted 845 | . 13 10 34 15 . 13 16 8 29 10 . 9 35 39 36 49 43 42 45 23 5 46 42 54 3 14 . 6 . 59 17 58 . 11 61 Peak Tracking Total 10 | . 5 3 4 4 . 4 7 5 7 4 . 2 7 5 6 6 10 4 3 7 3 5 4 7 1 2 . 1 . 9 3 4 . 4 6 Tactical Retreats 27 | . 1 . . . . . 1 . . . . . 2 1 . 3 . 2 3 . 2 1 . 2 . . . . . 1 . 6 . . 2 Traps | -11 -10 -10 -9 -9 -9 -8 -8 -8 -8 -7 -7 -7 -7 -6 -6 -5 -5 -5 -5 -4 -4 -4 -4 -4 -4 -4 -4 -3 -3 -3 -3 -3 -2 -2 -1 ------- Run | Jun Mat Min Mat Min Exi Min Mat Sto Gar Fac Gar Fac Gar Fac Gar Fac Gar Fac Gar Fac Was Fac Gar Fac Upp Upp War Pro Res Gar Res Gar Res DSF Acc Traps Triggered 42 | . . . . 1 . . 3 . 3 . . . 8 . 3 3 5 3 . 3 . 1 . . . . 1 . . 2 . 4 . 1 1 Indirectly 6 | . . . . . . . . . . . . . 4 . 2 . . . . . . . . . . . . . . . . . . . . Trap Hack Attempts . | . . . . . . . . . . . . . . . . . . . . . . . . . . . . . . . . . . . . Triggered . | . . . . . . . . . . . . . . . . . . . . . . . . . . . . . . . . . . . . Disarmed . | . . . . . . . . . . . . . . . . . . . . . . . . . . . . . . . . . . . . Reprogrammed . | . . . . . . . . . . . . . . . . . . . . . . . . . . . . . . . . . . . . Reused . | . . . . . . . . . . . . . . . . . . . . . . . . . . . . . . . . . . . . Traps Extracted . | . . . . . . . . . . . . . . . . . . . . . . . . . . . . . . . . . . . . Installed . | . . . . . . . . . . . . . . . . . . . . . . . . . . . . . . . . . . . . Triggered 4 | . . . . . . . . . . . . . . . . . . . . . . . . 1 2 1 . . . . . . . . . Machines | -11 -10 -10 -9 -9 -9 -8 -8 -8 -8 -7 -7 -7 -7 -6 -6 -5 -5 -5 -5 -4 -4 -4 -4 -4 -4 -4 -4 -3 -3 -3 -3 -3 -2 -2 -1 ---------- Run | Jun Mat Min Mat Min Exi Min Mat Sto Gar Fac Gar Fac Gar Fac Gar Fac Gar Fac Gar Fac Was Fac Gar Fac Upp Upp War Pro Res Gar Res Gar Res DSF Acc Machines Disabled 99 | . . 1 3 . . 1 2 2 3 1 2 . 7 5 7 2 9 2 5 3 . 7 5 7 . 1 . 2 . 9 . 12 . . 1 Max in Single Turn 4 | . . 1 1 . . 1 1 1 1 1 1 . 2 2 1 2 1 1 1 2 . 4 1 1 . 1 . 1 . 1 . 1 . . 1 Garrison Access 5 | . . . . . . . . . . . . . . . . . . . . . . 1 . . . . . . . . . . . . 4 Garrison Relay 39 | . . . . . . . . . 3 . 2 . 4 . 4 . 6 . 6 . . . 4 . . . . . . 5 . 5 . . . Phase Generator 1 | . . . . . . . . . . . . . 1 . . . . . . . . . . . . . . . . . . . . . . Machines Repaired . | . . . . . . . . . . . . . . . . . . . . . . . . . . . . . . . . . . . . Machines Sabotaged . | . . . . . . . . . . . . . . . . . . . . . . . . . . . . . . . . . . . . Overloaded Fab Kills . | . . . . . . . . . . . . . . . . . . . . . . . . . . . . . . . . . . . . Hacking | -11 -10 -10 -9 -9 -9 -8 -8 -8 -8 -7 -7 -7 -7 -6 -6 -5 -5 -5 -5 -4 -4 -4 -4 -4 -4 -4 -4 -3 -3 -3 -3 -3 -2 -2 -1 --------- Run | Jun Mat Min Mat Min Exi Min Mat Sto Gar Fac Gar Fac Gar Fac Gar Fac Gar Fac Gar Fac Was Fac Gar Fac Upp Upp War Pro Res Gar Res Gar Res DSF Acc Machines Accessed 154 | . 6 . 15 2 2 1 2 11 3 10 3 10 2 10 2 12 2 13 2 1 . 9 2 8 . 1 . 2 1 1 3 2 1 . 15 Terminals 90 | . 6 . 10 1 . 1 1 9 3 7 3 4 2 . 2 3 2 8 2 . . 5 2 4 . . . 1 . 1 1 2 1 . 9 Fabricators 4 | . . . . . . . . . . . . . . 1 . . . 1 . . . 1 . 1 . . . . . . . . . . . Repair Stations 8 | . . . 1 . . . . . . . . . . 3 . 2 . . . . . . . 2 . . . . . . . . . . . Recycling Units 18 | . . . 2 . . . . 1 . 2 . 2 . 1 . 3 . 2 . 1 . 1 . . . . . . . . 1 . . . 2 Scanalyzers 11 | . . . 2 . . . 1 . . . . 2 . 3 . 2 . . . . . . . 1 . . . . . . . . . . . Garrison Access 18 | . . . . . . . . 1 . 1 . 2 . 2 . 2 . 2 . . . 2 . . . . . . 1 . 1 . . . 4 Total Hacks 366 | . 22 . 41 3 10 1 5 24 5 23 4 28 3 24 2 32 2 29 3 1 . 25 2 25 . 1 . 2 2 1 7 3 1 . 35 Successful 253 | . 12 . 32 1 10 1 4 17 1 9 3 20 1 18 2 25 2 21 2 1 . 17 2 16 . 1 . 2 2 1 5 2 1 . 22 Failed 113 | . 10 . 9 2 . . 1 7 4 14 1 8 2 6 . 7 . 8 1 . . 8 . 9 . . . . . . 2 1 . . 13 Catastrophic 6 | . 1 . . . . . . . 1 1 . . . . . . . 1 . . . . . 1 . . . . . . . . . . 1 Database Lockouts . | . . . . . . . . . . . . . . . . . . . . . . . . . . . . . . . . . . . . Manual 138 | . 17 . 25 2 1 1 3 12 . 16 . 9 . . . 5 . 10 . . . 12 . 9 . . . 1 . . 3 . . . 12 Terminals 226 | . 22 . 29 2 . 1 3 22 5 17 4 14 3 . 2 7 2 21 3 . . 19 2 14 . . . 1 . 1 4 3 1 . 24 Fabricators 7 | . . . . . . . . . . . . . . 2 . . . 2 . . . 1 . 2 . . . . . . . . . . . Repair Stations 20 | . . . 2 . . . . . . . . . . 7 . 6 . . . . . . . 5 . . . . . . . . . . . Recycling Units 27 | . . . 3 . . . . 1 . 4 . 4 . 1 . 5 . 2 . 1 . 1 . . . . . . . . 1 . . . 4 Scanalyzers 39 | . . . 7 . . . 2 . . . . 6 . 10 . 10 . . . . . . . 4 . . . . . . . . . . . Garrison Access 34 | . . . . . . . . 1 . 2 . 4 . 4 . 4 . 4 . . . 4 . . . . . . 2 . 2 . . . 7 Terminal Hacks 85 | . 6 . 7 1 10 1 . 8 1 . 3 4 1 . 2 1 2 9 2 . . 7 2 4 . 1 . 2 . 1 1 2 1 . 6 Record 18 | . . . . . 9 . . . . . . . . . . . . 1 . . . 1 . . . . . 2 . . 1 . . . 4 Part Schematic 2 | . . . . . . . . . . . . 2 . . . . . . . . . . . . . . . . . . . . . . . Robot Analysis 2 | . . . 1 . . . . . . . . . . . . . . . . . . . . 1 . . . . . . . . . . . Prototype ID Bank 8 | . 3 . 2 . . . . 2 . . . . . . . . . 1 . . . . . . . . . . . . . . . . . Open Door 9 | . . . . 1 . . . 1 1 . 1 . 1 . . . 1 . . . . . 1 . . 1 . . . . . . . . 1 Open DSF 3 | . . . . . . . . . . . . . . . . . . 2 . . . . . . . . . . . . . . 1 . . Branch Access Points 4 | . 1 . 1 . . . . 1 . . . . . . . . . . . . . . . 1 . . . . . . . . . . . Emergency Access Points 6 | . . . . . . . . . . . 1 . . . 1 . 1 . . . . . 1 . . . . . . 1 . 1 . . . Alert Level 2 | . . . . . . 1 . . . . . . . . . 1 . . . . . . . . . . . . . . . . . . . Unreport Threat 10 | . . . . . . . . 1 . . . 1 . . . . . 4 . . . 2 . 1 . . . . . . . . . . 1 Locate Traps 11 | . 2 . 2 . . . . 2 . . . 1 . . . . . 1 . . . 2 . 1 . . . . . . . . . . . Dispatch Records 1 | . . . . . . . . . . . . . . . . . . . . . . 1 . . . . . . . . . . . . . Patrol Status 1 | . . . . . . . . . . . . . . . . . . . . . . 1 . . . . . . . . . . . . . Registered Components 1 | . . . 1 . . . . . . . . . . . . . . . . . . . . . . . . . . . . . . . . Registered Prototypes 1 | . . . . . . . . 1 . . . . . . . . . . . . . . . . . . . . . . . . . . . Garrison Registry 4 | . . . . . . . . . . . 1 . . . 1 . . . 1 . . . . . . . . . . . . 1 . . . Security Stations 1 | . . . . . . . . . . . . . . . . . . . 1 . . . . . . . . . . . . . . . . EX-Prototype ID Bank 1 | . . . . . 1 . . . . . . . . . . . . . . . . . . . . . . . . . . . . . . Fabricator Hacks 4 | . . . . . . . . . . . . . . 1 . . . 2 . . . . . 1 . . . . . . . . . . . Load Schematic 1 | . . . . . . . . . . . . . . . . . . 1 . . . . . . . . . . . . . . . . . Build 3 | . . . . . . . . . . . . . . 1 . . . 1 . . . . . 1 . . . . . . . . . . . Repair Station Hacks 14 | . . . 2 . . . . . . . . . . 5 . 4 . . . . . . . 3 . . . . . . . . . . . Scan Component 8 | . . . 1 . . . . . . . . . . 3 . 2 . . . . . . . 2 . . . . . . . . . . . Repair 6 | . . . 1 . . . . . . . . . . 2 . 2 . . . . . . . 1 . . . . . . . . . . . Recycling Unit Hacks 19 | . . . 2 . . . . 1 . 1 . 3 . 1 . 4 . 2 . 1 . 1 . . . . . . . . 1 . . . 2 Report Inventory 16 | . . . 2 . . . . 1 . 1 . 2 . 1 . 3 . 2 . 1 . 1 . . . . . . . . 1 . . . 1 Retrieve Matter 1 | . . . . . . . . . . . . . . . . . . . . . . . . . . . . . . . . . . . 1 Retrieve Components 2 | . . . . . . . . . . . . 1 . . . 1 . . . . . . . . . . . . . . . . . . . Scanalyzer 32 | . . . 6 . . . 2 . . . . 4 . 7 . 9 . . . . . . . 4 . . . . . . . . . . . Insert Component 17 | . . . 3 . . . 1 . . . . 2 . 4 . 5 . . . . . . . 2 . . . . . . . . . . . Analyze 15 | . . . 3 . . . 1 . . . . 2 . 3 . 4 . . . . . . . 2 . . . . . . . . . . . Garrison Access Hacks 34 | . . . . . . . . 1 . 2 . 4 . 4 . 4 . 4 . . . 4 . . . . . . 2 . 2 . . . 7 Unlock Access 14 | . . . . . . . . 1 . 1 . 2 . 2 . 2 . 2 . . . 2 . . . . . . 1 . 1 . . . . Seal Access 4 | . . . . . . . . . . . . . . . . . . . . . . . . . . . . . . . . . . . 4 Coupler Status 16 | . . . . . . . . . . 1 . 2 . 2 . 2 . 2 . . . 2 . . . . . . 1 . 1 . . . 3 Unauthorized Hacks 65 | . 6 . 15 . . . 2 7 . 6 . 5 . . . 3 . 4 . . . 5 . 4 . . . . . . 1 . . . 7 Terminals 65 | . 6 . 15 . . . 2 7 . 6 . 5 . . . 3 . 4 . . . 5 . 4 . . . . . . 1 . . . 7 Track 11 | . . . 4 . . . 1 . . 1 . 2 . . . . . . . . . 1 . 1 . . . . . . . . . . 1 Assimilate 6 | . . . 1 . . . . . . 2 . . . . . . . . . . . . . 2 . . . . . . . . . . 1 Botnet 48 | . 6 . 10 . . . 1 7 . 3 . 3 . . . 3 . 4 . . . 4 . 1 . . . . . . 1 . . . 5 Fabricators . | . . . . . . . . . . . . . . . . . . . . . . . . . . . . . . . . . . . . Repair Stations . | . . . . . . . . . . . . . . . . . . . . . . . . . . . . . . . . . . . . Recycling Units . | . . . . . . . . . . . . . . . . . . . . . . . . . . . . . . . . . . . . Scanalyzers . | . . . . . . . . . . . . . . . . . . . . . . . . . . . . . . . . . . . . Garrison Access . | . . . . . . . . . . . . . . . . . . . . . . . . . . . . . . . . . . . . Data Cores Recovered 2 | . . . . . . . . . . . . . . . . . . 1 . . . . . . . . . . . . . . . . 1 Used . | . . . . . . . . . . . . . . . . . . . . . . . . . . . . . . . . . . . . Hacking Detections 107 | . 5 . 9 . . . 1 6 3 10 3 10 1 6 1 11 1 6 2 . . 4 . 6 . . . 1 1 1 3 2 1 . 13 Full Trace Events 15 | . 2 . 1 . . . . . . . . . . 1 . 2 . 3 . . . 1 . 1 . . . . . . . . . . 4 Feedback Events 2 | . . . . . . . . . . . . . . . . . . . . . . . . 1 . . . . . . . . . . 1 Corruption 2 | . . . . . . . . . . . . . . . . . . . . . . . . 1 . . . . . . . . . . 1 Feedback Blocked . | . . . . . . . . . . . . . . . . . . . . . . . . . . . . . . . . . . . . Robot Schematics Acquired . | . . . . . . . . . . . . . . . . . . . . . . . . . . . . . . . . . . . . Robots Built . | . . . . . . . . . . . . . . . . . . . . . . . . . . . . . . . . . . . . Authchips . | . . . . . . . . . . . . . . . . . . . . . . . . . . . . . . . . . . . . Time . | . . . . . . . . . . . . . . . . . . . . . . . . . . . . . . . . . . . . Total Robot Build Rating . | . . . . . . . . . . . . . . . . . . . . . . . . . . . . . . . . . . . . Part Schematics Acquired 15 | . . . 2 . . . 1 . . . . 4 . 3 . 3 . . . . . . . 2 . . . . . . . . . . . Parts Built 6 | . . . . . . . . . . . . . . 2 . . . 2 . . . . . 2 . . . . . . . . . . . Authchips . | . . . . . . . . . . . . . . . . . . . . . . . . . . . . . . . . . . . . Time 223 | . . . . . . . . . . . . . . 64 . . . 95 . . . . . 64 . . . . . . . . . . . Total Part Build Rating 42 | . . . . . . . . . . . . . . 16 . . . 10 . . . . . 16 . . . . . . . . . . . Parts Repaired 6 | . . . 1 . . . . . . . . . . 2 . 2 . . . . . . . 1 . . . . . . . . . . . Time 308 | . . . 53 . . . . . . . . . . 105 . 47 . . . . . . . 103 . . . . . . . . . . . Parts Recycled . | . . . . . . . . . . . . . . . . . . . . . . . . . . . . . . . . . . . . Recycled Matter . | . . . . . . . . . . . . . . . . . . . . . . . . . . . . . . . . . . . . Retrieved Matter 858 | . . . . . . . . . . . . . . . . . . . . . . . . . . . . . . . . . . . 858 Retrieved Components 3 | . . . . . . . . . . . . 1 . . . 2 . . . . . . . . . . . . . . . . . . . Parts Scanalyzed 13 | . . . 2 . . . 1 . . . . 2 . 3 . 3 . . . . . . . 2 . . . . . . . . . . . Part Schematics Acquired 13 | . . . 2 . . . 1 . . . . 2 . 3 . 3 . . . . . . . 2 . . . . . . . . . . . Parts Damaged 1 | . . . 1 . . . . . . . . . . . . . . . . . . . . . . . . . . . . . . . . Bothacking | -11 -10 -10 -9 -9 -9 -8 -8 -8 -8 -7 -7 -7 -7 -6 -6 -5 -5 -5 -5 -4 -4 -4 -4 -4 -4 -4 -4 -3 -3 -3 -3 -3 -2 -2 -1 ------------ Run | Jun Mat Min Mat Min Exi Min Mat Sto Gar Fac Gar Fac Gar Fac Gar Fac Gar Fac Gar Fac Was Fac Gar Fac Upp Upp War Pro Res Gar Res Gar Res DSF Acc Used RIF Installer 10 | . . . . . . . . . 1 . 1 . 1 . 1 . 1 . 1 . . . 1 . . . . . . 1 . 2 . . . Hotswap 1 | . . . . . . . . . . . . . . . . . 1 . . . . . . . . . . . . . . . . . . Code Merge 1 | . . . . . . . . . . . . . . . 1 . . . . . . . . . . . . . . . . . . . . Command Fork 1 | . . . . . . . . . . . 1 . . . . . . . . . . . . . . . . . . . . . . . . Threat Obfuscator 2 | . . . . . . . . . . . . . . . . . . . . . . . . . . . . . . 1 . 1 . . . Robot Detection 1 | . . . . . . . . . . . . . . . . . . . 1 . . . . . . . . . . . . . . . . Watcher Feeds 1 | . . . . . . . . . . . . . . . . . . . . . . . . . . . . . . . . 1 . . . Structural Interface 1 | . . . . . . . . . . . . . . . . . . . . . . . 1 . . . . . . . . . . . . Autooverride 1 | . . . . . . . . . . . . . 1 . . . . . . . . . . . . . . . . . . . . . . Robots Hacked 155 | . . . 1 . . . . . . . . . 3 8 11 13 14 18 15 5 . 9 12 2 1 3 . 2 . 17 2 6 . . 13 Non-combat 10 | . . . . . . . . . . . . . . . . . . 5 . . . 1 . 1 . . . 1 . 1 . . . . 1 Combat 145 | . . . 1 . . . . . . . . . 3 8 11 13 14 13 15 5 . 8 12 1 1 3 . 1 . 16 2 6 . . 12 Autooverrided 24 | . . . . . . . . . . . . . 2 . 4 1 2 3 2 . . 2 4 . . 1 . . . 2 . 1 . . . Robot Hacks Applied 134 | . . . 1 . . . . . . . . . 1 8 7 12 13 15 13 5 . 7 8 2 1 2 . 2 . 15 2 6 . . 14 parse_system 7 | . . . 1 . . . . . . . . . . 2 . 1 1 . . . . . . 1 . . . 1 . . . . . . . no_distress 1 | . . . . . . . . . . . . . . . . . . 1 . . . . . . . . . . . . . . . . . ignore_repairs 1 | . . . . . . . . . . . . . . . . . . . . . . 1 . . . . . . . . . . . . . ignore_parts 3 | . . . . . . . . . . . . . . . . . . 3 . . . . . . . . . . . . . . . . . check_alert 3 | . . . . . . . . . . . . . . . . . . 1 . . . . . . . . . . . 1 . . . . 1 disable_weapons 2 | . . . . . . . . . . . . . . . . 1 . . . . . . . . . . . . . . . 1 . . . go_dormant 2 | . . . . . . . . . . . . . . . . 1 . . 1 . . . . . . . . . . . . . . . . overwrite_iff 21 | . . . . . . . . . . . . . . . . . . . 2 3 . 3 4 1 . . . . . 1 . . . . 7 formatsys_high 94 | . . . . . . . . . . . . . 1 6 7 9 12 10 10 2 . 3 4 . 1 2 . 1 . 13 2 5 . . 6 Relay Couplers Released 73 | . . . . . . . . . 4 . 4 . 7 . 7 3 10 . 12 . . 2 7 . . . . . . 9 . 8 . . . Machine Destruction 70 | . . . . . . . . . 4 . 4 . 7 . 7 . 10 . 12 . . 2 7 . . . . . . 9 . 8 . . . Programmers 3 | . . . . . . . . . . . . . . . . 3 . . . . . . . . . . . . . . . . . . . Attached 24 | . . . . . . . . . 1 . . 1 3 1 4 1 3 1 3 1 . . 2 . . . . . . 1 . . . . 2 Merged Code Value 279 | . . . . . . . . . . . . . . . . . 18 . 69 . . . 40 . . . . . . 133 . 19 . . . Fabnet Peak Effective % . | . . . . . . . . . . . . . . . . . . . . . . . . . . . . . . . . . . . . Robots Rewired 40 | . . . . . . . . . . . 3 . 2 . 2 . 6 . 3 . . . 10 . . 1 . . . 8 . 5 . . . Allies Hacked 13 | . . . . . . . . . . . . . 1 . . 2 . 2 . . . . 2 1 . . . . . 1 2 . . . 2 Hacks Repelled . | . . . . . . . . . . . . . . . . . . . . . . . . . . . . . . . . . . . . Allies | -11 -10 -10 -9 -9 -9 -8 -8 -8 -8 -7 -7 -7 -7 -6 -6 -5 -5 -5 -5 -4 -4 -4 -4 -4 -4 -4 -4 -3 -3 -3 -3 -3 -2 -2 -1 -------- Run | Jun Mat Min Mat Min Exi Min Mat Sto Gar Fac Gar Fac Gar Fac Gar Fac Gar Fac Gar Fac Was Fac Gar Fac Upp Upp War Pro Res Gar Res Gar Res DSF Acc Total Allies 225 | . . . . . . . . 10 1 . 7 . 6 9 17 13 25 17 18 5 . 9 27 1 1 4 . 1 . 25 2 12 . . 15 Largest Group 14 | . . . . . . . . 10 10 2 7 7 4 7 8 8 11 9 8 6 1 3 14 14 1 3 3 3 1 11 5 7 7 7 9 Highest-Rated Group 773 | . . . . . . . . 173 188 44 249 249 131 263 361 361 439 364 332 202 49 92 773 773 49 158 158 146 41 551 304 584 580 580 554 Highest-Rated Ally 148 | . . . . . . . . 29 31 31 80 80 62 47 99 80 49 49 49 49 49 49 95 95 49 64 64 64 41 89 64 148 148 148 148 Total Orders 12 | . . . . . . . . 2 . . . . . . . 4 . 1 . . . . . . . . . . . . . 5 . . . STAY 3 | . . . . . . . . . . . . . . . . . . . . . . . . . . . . . . . . 3 . . . ROAM 6 | . . . . . . . . 2 . . . . . . . 3 . 1 . . . . . . . . . . . . . . . . . FOLLOW 2 | . . . . . . . . . . . . . . . . . . . . . . . . . . . . . . . . 2 . . . EXPLORE 1 | . . . . . . . . . . . . . . . . 1 . . . . . . . . . . . . . . . . . . . Ally Attacks 1394 | . . . . . . . . 46 107 4 . 37 20 38 103 155 118 133 71 30 3 30 68 70 . 26 . 2 . 115 42 105 . 14 57 Total Damage 37548 | . . . . . . . . 581 1464 58 . 1008 756 937 3159 3025 2312 2903 1799 613 117 978 2236 2325 . 1047 . 11 . 3641 1578 4425 . 607 1968 Kills 237 | . . . . . . . . 5 15 . . 11 7 6 23 22 20 17 11 5 . 9 11 13 . 5 . . . 22 6 15 . 6 8 Allies Corrupted 18 | . . . . . . . . . . . . 1 . . 1 2 1 4 . 1 . . 2 1 . . . . . 2 . . . . 3 Allies Melted 3 | . . . . . . . . . . . . . . . . . . 1 . . . . 2 . . . . . . . . . . . . Intel | -11 -10 -10 -9 -9 -9 -8 -8 -8 -8 -7 -7 -7 -7 -6 -6 -5 -5 -5 -5 -4 -4 -4 -4 -4 -4 -4 -4 -3 -3 -3 -3 -3 -2 -2 -1 ------- Run | Jun Mat Min Mat Min Exi Min Mat Sto Gar Fac Gar Fac Gar Fac Gar Fac Gar Fac Gar Fac Was Fac Gar Fac Upp Upp War Pro Res Gar Res Gar Res DSF Acc Robot Analysis Total 2 | . . . 1 . . . . . . . . . . . . . . . . . . . . 1 . . . . . . . . . . . Derelict Logs Recovered 8 | . . 1 . 2 . . . . . . . . . . . . . . . . . . . . 2 3 . . . . . . . . . Drone Launches 6 | . . . . . . . . 2 . . . . . . . 4 . . . . . . . . . . . . . . . . . . . Drone Recoveries 2 | . . . . . . . . . . . . . . . . 2 . . . . . . . . . . . . . . . . . . . Exploration | -11 -10 -10 -9 -9 -9 -8 -8 -8 -8 -7 -7 -7 -7 -6 -6 -5 -5 -5 -5 -4 -4 -4 -4 -4 -4 -4 -4 -3 -3 -3 -3 -3 -2 -2 -1 ------------- Run | Jun Mat Min Mat Min Exi Min Mat Sto Gar Fac Gar Fac Gar Fac Gar Fac Gar Fac Gar Fac Was Fac Gar Fac Upp Upp War Pro Res Gar Res Gar Res DSF Acc Turns Passed 43479 | 32 480 487 1646 864 637 672 576 458 969 1364 714 1005 910 1605 1719 2352 1864 1899 2192 644 162 2568 1406 2540 1211 1310 248 1207 67 2075 538 2450 24 330 4254 Spaces Moved 27286 | 29 412 478 1102 530 438 418 449 311 755 1017 622 885 665 1049 1231 1779 1309 1143 1159 341 105 1268 802 1387 803 819 170 774 32 1083 295 1287 12 175 2152 Core . | . . . . . . . . . . . . . . . . . . . . . . . . . . . . . . . . . . . . Treads 14966 | . . . 282 530 438 418 7 . . . . . . . . . . 627 1159 341 105 1268 802 1387 803 819 170 774 32 1083 295 1287 12 175 2152 Legs 2 | 2 . . . . . . . . . . . . . . . . . . . . . . . . . . . . . . . . . . . Wheels 12318 | 27 412 478 820 . . . 442 311 755 1017 622 885 665 1049 1231 1779 1309 516 . . . . . . . . . . . . . . . . . Hover . | . . . . . . . . . . . . . . . . . . . . . . . . . . . . . . . . . . . . Flight . | . . . . . . . . . . . . . . . . . . . . . . . . . . . . . . . . . . . . Fastest Speed 80 | 80 90 90 90 145 145 145 100 96 96 96 96 96 96 96 100 100 100 100 145 145 145 145 145 145 145 145 145 145 145 145 150 150 155 155 155 Average Speed 125 | 90 90 90 108 147 145 145 100 96 96 96 96 96 96 99 100 100 105 131 145 145 145 145 145 145 145 145 145 145 145 146 150 151 155 155 158 Slowest Speed 225 | 120 90 90 225 148 145 145 145 100 96 96 96 96 96 100 100 115 115 225 150 156 145 145 145 145 145 145 145 145 145 150 150 155 155 155 160 Overloaded Moves . | . . . . . . . . . . . . . . . . . . . . . . . . . . . . . . . . . . . . Propulsion Burnouts . | . . . . . . . . . . . . . . . . . . . . . . . . . . . . . . . . . . . . Robots Hopped 2 | . . . . . . . . . . . . . . . . 2 . . . . . . . . . . . . . . . . . . . Cave-ins Triggered . | . . . . . . . . . . . . . . . . . . . . . . . . . . . . . . . . . . . . Exploration Rate (%) 58 | 2 72 98 90 89 90 92 26 54 74 25 74 20 84 28 92 39 76 27 96 8 75 23 93 22 95 93 17 74 2 98 12 99 1 94 49 Regions Visited 35 Branch Regions 9 Pre-discovered Areas 1 | . . . . . . . . . . . . . . . . . . . . . . . . . . 1 . . . . . . . . . Known Exits Taken 17 | . 1 . 1 1 1 1 1 1 . 1 . 1 . 1 . 1 . 1 . . . 1 . 1 . . . . 1 . 1 . 1 . . Unknown Exits Taken 6 | 1 . 1 . . . . . . . . . . . . . . . . . . . . . . 1 1 1 1 . . . . . . . Scrap Searched 16 | . . 1 . 2 . 2 . . . . . . . . . . . . . . . . . . 3 4 . 4 . . . . . . . Spaces Dug 136 | . . . . . . . 5 5 1 15 2 10 13 4 2 7 . 4 2 . . 12 . 14 . . . . . . 7 10 . . 23 Terrain Destroyed 957 | . . 20 22 71 . 98 22 5 15 15 2 10 88 58 10 44 12 26 20 65 2 107 27 46 7 13 . 17 . 34 18 40 . . 43 Melee 119 | . . . . . . . 5 5 1 15 2 10 2 4 2 7 . 4 2 . . 10 . 14 . . . . . . 7 9 . . 20 Projectile 366 | . . . 15 . . . . . . . . . 1 . 1 25 9 22 18 11 2 67 27 32 7 13 . 17 . 34 11 31 . . 23 AOE 472 | . . 20 7 71 . 98 17 . 14 . . . 85 54 7 12 3 . . 54 . 30 . . . . . . . . . . . . . Terrain Rammed . | . . . . . . . . . . . . . . . . . . . . . . . . . . . . . . . . . . . . Walls Destroyed . | . . . . . . . . . . . . . . . . . . . . . . . . . . . . . . . . . . . . Machines Disabled . | . . . . . . . . . . . . . . . . . . . . . . . . . . . . . . . . . . . . Actions | -11 -10 -10 -9 -9 -9 -8 -8 -8 -8 -7 -7 -7 -7 -6 -6 -5 -5 -5 -5 -4 -4 -4 -4 -4 -4 -4 -4 -3 -3 -3 -3 -3 -2 -2 -1 --------- Run | Jun Mat Min Mat Min Exi Min Mat Sto Gar Fac Gar Fac Gar Fac Gar Fac Gar Fac Gar Fac Was Fac Gar Fac Upp Upp War Pro Res Gar Res Gar Res DSF Acc Total 34011 | 34 471 525 1440 594 440 468 542 446 917 1345 698 1011 829 1482 1501 2245 1654 1474 1482 438 108 1812 962 1809 838 903 171 830 53 1428 353 1609 17 220 2862 Wait 3134 | . 9 20 183 32 . 17 26 95 34 239 15 59 31 296 58 302 84 167 71 34 . 307 24 279 21 43 2 16 20 110 16 67 6 21 430 Move 27238 | 28 411 477 1101 529 437 417 448 310 753 1016 620 884 663 1048 1229 1774 1307 1142 1157 341 104 1267 800 1386 802 818 169 773 31 1081 294 1285 11 174 2151 Hop 2 | . . . . . . . . . . . . . . . . 2 . . . . . . . . . . . . . . . . . . . Pick Up 112 | 1 1 2 6 1 1 4 3 1 4 2 3 4 3 4 3 9 17 1 8 1 . 14 1 2 . . . . . 3 . 3 . . 10 Fast Attach 314 | 3 6 2 16 3 . 1 8 4 6 10 5 7 1 8 11 22 9 21 25 7 1 26 3 15 2 2 . 7 1 21 5 21 . 2 33 Attach 29 | . . . 3 . . . 2 . 1 . . 1 . 1 1 2 5 2 1 2 . 3 . . . . . . . 1 . 1 . . 3 Detach 43 | 1 . . 4 1 . 1 . . . 1 1 1 . 1 . 4 6 3 4 1 . 3 2 1 . . . . . 4 . 3 . . 1 Swap 229 | . 4 4 10 3 1 1 5 1 1 7 . 5 5 5 19 16 14 11 25 3 . 20 9 7 2 1 . 2 . 14 2 12 . 1 19 Drop 399 | 1 7 3 21 4 1 3 17 6 8 15 6 13 4 8 14 22 23 25 27 7 1 40 1 14 2 2 . 5 1 22 5 21 . 1 49 Fire 1105 | . 29 5 61 10 . 15 20 11 28 23 . 6 45 59 41 52 65 60 67 21 2 66 57 46 6 21 . 16 . 82 17 89 . 9 76 Melee 511 | . . 4 2 . . . 5 9 42 18 28 14 24 7 95 11 44 4 54 2 . 28 10 14 . . . 2 . 24 7 35 . . 28 Ram 1 | . . . 1 . . . . . . . . . . . . . . . . . . . . . . . . . . . . . . . . Kick . | . . . . . . . . . . . . . . . . . . . . . . . . . . . . . . . . . . . . Crush 1 | . . . . . . . . . . . . . . . . . . 1 . . . . . . . . . . . . . . . . . Escape Stasis 52 | . . . . . . . . . 7 . . . 9 . . . 36 . . . . . . . . . . . . . . . . . . Rewire 39 | . . . . . . . . 3 . . 15 . 5 . 2 1 3 . 1 . . . 1 . . . . . . 2 . 1 . 5 . Trap . | . . . . . . . . . . . . . . . . . . . . . . . . . . . . . . . . . . . . Miscellaneous 802 | . 4 8 32 11 . 9 8 6 33 14 5 17 39 45 28 28 41 37 42 19 . 38 54 45 3 16 . 9 . 64 7 71 . 7 62 Route ------- -11/Junkyard -10/Materials (discovered 4 exits: *Mat x2 / *Min x2) -10/Mines (discovered 2 exits: *Mat x2) -9/Materials (discovered 4 exits: *Mat x3 / *Min) -9/Mines (discovered 2 exits: *Mat / *Exi) -9/Exiles -8/Mines (discovered 2 exits: *Mat x2) -8/Materials (discovered 2 exits: *Fac / *Sto) -8/Storage (discovered 3 exits: *Fac / Rec / Gar) -8/Garrison (discovered 3 exits: *Fac x3) -7/Factory (discovered 2 exits: *Fac / Gar) -7/Garrison (discovered 3 exits: *Fac x3) -7/Factory (discovered 4 exits: [*Low x2] / Gar / Gar) -7/Garrison (discovered 2 exits: *Fac x2) -6/Factory (discovered 4 exits: *Fac / [*Low] / Gar / Gar) -6/Garrison (discovered 3 exits: *Fac x3) -5/Factory (discovered 4 exits: *Fac / [*Upp] / Gar / Gar) -5/Garrison (discovered 3 exits: *Fac x3) -5/Factory (discovered 4 exits: [*Upp x2] / Gar / Gar) -5/Garrison (discovered 3 exits: *Fac x3) -4/Factory -4/Waste -4/Factory (discovered 2 exits: *Res / Gar) -4/Garrison (discovered 3 exits: *Fac x3) -4/Factory (discovered 3 exits: *Res / *Upp x2) -4/Upper Caves -4/Upper Caves (discovered 2 exits: *Res / [*War]) -4/Warlord -3/Proximity Caves -3/Research (discovered 2 exits: Res / Gar) -3/Garrison (discovered 3 exits: *Res x3) -3/Research -3/Garrison (discovered 3 exits: *Res x3) -2/Research -2/DSF -1/Access To Epsilon Eridani History --------- Turn | Location | Event 1 | -11/Junkyard | Discovered new exit (range 1) 3 | -11/Junkyard | Upgraded with Propulsion slot (x1) 3 | -11/Junkyard | Upgraded with Utility slot (x3) 3 | -11/Junkyard | Upgraded with Weapon slot (x1) 33 | -11/Junkyard | Entered Materials 90 | -10/Materials | Discovered new exit (range 15) 253 | -10/Materials | Discovered new exit (range 3) 314 | -10/Materials | Build established: Mutant 420 | -10/Materials | Discovered new exit (range 3) 504 | -10/Materials | Identified exit to Mines 513 | -10/Materials | Entered Mines 515 | -10/Mines | Reached level 2 520 | -10/Mines | Received a Rocket Launcher from a helpful Derelict 521 | -10/Mines | Upgraded with Power slot (x1) 521 | -10/Mines | Upgraded with Propulsion slot (x1) 800 | -10/Mines | Learned Materials trap positions 805 | -10/Mines | A weapon hastily lodged in a ceiling crevice suddenly fell to the ground 832 | -10/Mines | Discovered new exit (range 5) 879 | -10/Mines | Discovered new exit (range 5) 1000 | -10/Mines | Entered Materials 1001 | -9/Materials | Loaded intel: 10 trap records 1002 | -9/Materials | Reached level 3 1002 | -9/Materials | Reached level 4 1003 | -9/Materials | Upgraded with Utility slot (x1) 1003 | -9/Materials | Upgraded with Weapon slot (x1) 1080 | -9/Materials | Identified exit to Mines 1242 | -9/Materials | Reached level 5 1582 | -9/Materials | Upgraded with Weapon slot (x1) 1593 | -9/Materials | Reached level 6 1732 | -9/Materials | Discovered new exit (range 5) 1736 | -9/Materials | Identified exit to Materials 1923 | -9/Materials | Discovered exit to Materials (range 10) 2225 | -9/Materials | Reached level 7 2228 | -9/Materials | Upgraded with Propulsion slot (x1) 2310 | -9/Materials | Discovered exit to Materials (range 3) 2505 | -9/Materials | Build established: Scavenger-Gunner 2548 | -9/Materials | Repaired Broken Adv. Treads 2646 | -9/Materials | Entered Mines 2647 | -9/Mines | Assembled infested the area 2698 | -9/Mines | Learned 2 Materials zone layouts 3012 | -9/Mines | Discovered exit to Materials (range 9) 3124 | -9/Mines | Reached level 8 3373 | -9/Mines | Met a Derelict who couldn't figure out how to use a Trap Extractor 3468 | -9/Mines | Deemed a non-threat by the Exiles lab entrance 3468 | -9/Mines | Discovered new exit (range 5) 3472 | -9/Mines | Identified exit to Exiles 3510 | -9/Mines | Entered Exiles 3545 | -9/Exiles | Met 8R-AWN 3571 | -9/Exiles | Met EX-HEX 3609 | -9/Exiles | Met EX-BIN 3628 | -9/Exiles | Aligned with FarCom system 3629 | -9/Exiles | Given EX-Vault access code 3677 | -9/Exiles | Opened EX-Vault 3680 | -9/Exiles | Build established: Mutant 3691 | -9/Exiles | Found Latent Energy Streamer 3747 | -9/Exiles | Warned to stay clear of 0b10 Research branches 3788 | -9/Exiles | Met EX-DEC 3926 | -9/Exiles | Visited The Gauntlet 4133 | -9/Exiles | Discovered new exit (range 10) 4146 | -9/Exiles | Identified exit to Mines 4147 | -9/Exiles | Left Exiles lab with Latent Energy Streamer 4147 | -9/Exiles | Entered Mines 4150 | -8/Mines | Discovered exit to Materials (range 5) 4490 | -8/Mines | Reached level 9 4794 | -8/Mines | Discovered exit to Materials (range 9) 4819 | -8/Mines | Entered Materials 4820 | -8/Materials | Identified exit to Storage 4821 | -8/Materials | Identified exit to Factory 4821 | -8/Materials | Reached level 10 4877 | -8/Materials | Build established: Gunner 4956 | -8/Materials | Reached level 11 4961 | -8/Materials | Upgraded with Propulsion slot (x1) 5007 | -8/Materials | Destroyed 8 combat bots 5267 | -8/Materials | Build established: Mutant 5395 | -8/Materials | Entered Storage 5396 | -8/Storage | Identified exit to Recycling 5508 | -8/Storage | Garrison activated, responded to threat 5568 | -8/Storage | Identified exit to Garrison 5613 | -8/Storage | Assisted by bots powering up and referring to "LRC-V3" 5628 | -8/Storage | Reached level 12 5742 | -8/Storage | Discovered exit to Factory (range 16) 5853 | -8/Storage | Entered Garrison 5853 | -8/Garrison | Accompanied by 9 allies 5868 | -8/Garrison | Triggered checkpoint 5901 | -8/Garrison | Rescued a captive Derelict 5908 | -8/Garrison | Build established: Commander-Mutant 5986 | -8/Garrison | Triggered checkpoint 5987 | -8/Garrison | Triggered checkpoint 6004 | -8/Garrison | Reached level 13 6006 | -8/Garrison | Upgraded with Weapon slot (x1) 6060 | -8/Garrison | Triggered checkpoint 6125 | -8/Garrison | Garrison Relay disabled 6139 | -8/Garrison | Installed Relay Interface Framework 6188 | -8/Garrison | Discovered exit to Factory (range 8) 6284 | -8/Garrison | Triggered checkpoint 6467 | -8/Garrison | Discovered exit to Factory (range 10) 6511 | -8/Garrison | Triggered checkpoint 6519 | -8/Garrison | System corruption reached 10% 6567 | -8/Garrison | Garrison Relay disabled 6712 | -8/Garrison | Discovered exit to Factory (range 9) 6746 | -8/Garrison | Triggered checkpoint 6773 | -8/Garrison | Garrison Relay disabled 6822 | -8/Garrison | Entered Factory 6822 | -7/Factory | Accompanied by 2 allies 6824 | -7/Factory | Reached level 14 7030 | -7/Factory | Reached level 15 7160 | -7/Factory | Build established: Gunner 7863 | -7/Factory | Discovered new exit (range 13) 7867 | -7/Factory | Identified exit to Garrison 8186 | -7/Factory | Entered Garrison 8186 | -7/Garrison | Discovered recently destroyed garrison 8239 | -7/Garrison | Expanded RIF knowledge: Command Fork 8404 | -7/Garrison | Build established: Mutant 8529 | -7/Garrison | Discovered new exit (range 13) 8619 | -7/Garrison | Garrison Relay disabled 8773 | -7/Garrison | Discovered new exit (range 12) 8791 | -7/Garrison | Discovered new exit (range 55) 8791 | -7/Garrison | Discovered new exit (range 53) 8791 | -7/Garrison | Discovered new exit (range 22) 8803 | -7/Garrison | Garrison Relay disabled 8816 | -7/Garrison | Rescued a captive Derelict 8818 | -7/Garrison | Rescued a captive Derelict 8874 | -7/Garrison | Found embedded Infiltrators 8900 | -7/Garrison | Entered Factory 8900 | -7/Factory | Accompanied by 7 allies 8967 | -7/Factory | Identified exit to Garrison 9000 | -7/Factory | Discovered new exit (range 10) 9102 | -7/Factory | Garrison activated, responded to threat 9122 | -7/Factory | Reached level 16 9248 | -7/Factory | Identified exit to Garrison 9582 | -7/Factory | Build established: Hacker-Mutant 9769 | -7/Factory | Discovered new exit (range 9) 9905 | -7/Factory | Entered Garrison 9905 | -7/Garrison | Accompanied by 2 allies 9924 | -7/Garrison | Triggered checkpoint 9964 | -7/Garrison | Garrison Relay disabled 9983 | -7/Garrison | Expanded RIF knowledge: Autooverride 10120 | -7/Garrison | Triggered checkpoint 10218 | -7/Garrison | Triggered checkpoint 10315 | -7/Garrison | Discovered new exit (range 10) 10386 | -7/Garrison | Phase Generator disabled 10490 | -7/Garrison | System corruption reached 10% 10509 | -7/Garrison | Reached level 17 10535 | -7/Garrison | Destroyed 8 combat bots 10579 | -7/Garrison | Triggered checkpoint 10605 | -7/Garrison | Garrison Relay disabled 10674 | -7/Garrison | Triggered checkpoint 10738 | -7/Garrison | Discovered new exit (range 14) 10764 | -7/Garrison | Garrison Relay disabled 10815 | -7/Garrison | Entered Factory 10815 | -6/Factory | Accompanied by 2 allies 10863 | -6/Factory | Reached level 18 10870 | -6/Factory | Upgraded with Propulsion slot (x1) 11157 | -6/Factory | Build established: Bothacker-Gunner 11165 | -6/Factory | First assault squad dispatched 11272 | -6/Factory | Identified exit to Garrison 11403 | -6/Factory | Repaired Prc. Assault Rifle 11553 | -6/Factory | Discovered new exit (range 12) 11843 | -6/Factory | Identified exit to Garrison 11860 | -6/Factory | Discovered new exit (range 15) 12158 | -6/Factory | Repaired Broken Adv. Heat Sink? 12158 | -6/Factory | Reached level 19 12161 | -6/Factory | Upgraded with Utility slot (x1) 12281 | -6/Factory | Fabricated Adv. Heavy Treads (x2) 12420 | -6/Factory | Entered Garrison 12420 | -6/Garrison | Accompanied by 4 allies 12432 | -6/Garrison | Triggered checkpoint 12643 | -6/Garrison | Garrison Relay disabled 12820 | -6/Garrison | Spotted B-75 Beast 12826 | -6/Garrison | Triggered checkpoint 12827 | -6/Garrison | System corruption reached 10% 12841 | -6/Garrison | Triggered checkpoint 12870 | -6/Garrison | Triggered checkpoint 12918 | -6/Garrison | Triggered checkpoint 13023 | -6/Garrison | Discovered new exit (range 10) 13050 | -6/Garrison | Triggered checkpoint 13057 | -6/Garrison | Garrison Relay disabled 13121 | -6/Garrison | Build established: Bothacker-Mutant 13163 | -6/Garrison | Discovered new exit (range 13) 13198 | -6/Garrison | Triggered checkpoint 13203 | -6/Garrison | Reached level 20 13240 | -6/Garrison | Discovered new exit (range 54) 13240 | -6/Garrison | Discovered new exit (range 14) 13240 | -6/Garrison | Discovered new exit (range 72) 13260 | -6/Garrison | Garrison Relay disabled 13462 | -6/Garrison | Rewired Striker 13469 | -6/Garrison | Rewired Striker 13520 | -6/Garrison | Build established: Bothacker-Assassin 13592 | -6/Garrison | Allies destroyed Striker 13746 | -6/Garrison | Found embedded Infiltrators 13783 | -6/Garrison | Garrison Relay disabled 13788 | -6/Garrison | Triggered checkpoint 13822 | -6/Garrison | Rescued a captive Derelict 13957 | -6/Garrison | Expanded RIF knowledge: Code Merge 14139 | -6/Garrison | Entered Factory 14139 | -5/Factory | Accompanied by 8 allies 14141 | -5/Factory | Reached level 21 14384 | -5/Factory | Repaired Lyr. Medium Armor Plating 14465 | -5/Factory | Discovered new exit (range 6) 14739 | -5/Factory | First assault squad dispatched 14980 | -5/Factory | P-80 Master assimilated allied AQ-JNJ(x) 14983 | -5/Factory | Reached level 22 15288 | -5/Factory | Build established: Bothacker-Gunner 15295 | -5/Factory | Identified exit to Garrison 15918 | -5/Factory | Discovered new exit (range 12) 16028 | -5/Factory | Garrison activated, responded to threat 16122 | -5/Factory | Identified exit to Garrison 16174 | -5/Factory | Garrison activated, responded to threat 16341 | -5/Factory | Build established: Hacker-Assassin 16395 | -5/Factory | Repaired Arm. Huge Wheel 16491 | -5/Factory | Entered Garrison 16491 | -5/Garrison | Accompanied by 2 allies 16568 | -5/Garrison | Triggered checkpoint 16606 | -5/Garrison | Triggered checkpoint 16627 | -5/Garrison | Garrison Relay disabled 16663 | -5/Garrison | Rescued a captive Derelict 16719 | -5/Garrison | Reached level 23 16848 | -5/Garrison | Triggered checkpoint 16856 | -5/Garrison | Heavy support dispatched to Factory 16863 | -5/Garrison | System corruption reached 10% 16872 | -5/Garrison | Triggered checkpoint 16912 | -5/Garrison | Triggered checkpoint 16924 | -5/Garrison | Triggered checkpoint 16945 | -5/Garrison | Garrison Relay disabled 17088 | -5/Garrison | Discovered new exit (range 10) 17109 | -5/Garrison | Triggered checkpoint 17146 | -5/Garrison | Triggered checkpoint 17170 | -5/Garrison | Garrison Relay disabled 17213 | -5/Garrison | Expanded RIF knowledge: Hotswap 17310 | -5/Garrison | Triggered checkpoint 17315 | -5/Garrison | Garrison Relay disabled 17360 | -5/Garrison | Triggered checkpoint 17474 | -5/Garrison | Discovered new exit (range 10) 17485 | -5/Garrison | H-XX Assembler disabled 17600 | -5/Garrison | Triggered checkpoint 17609 | -5/Garrison | Garrison Relay disabled 17642 | -5/Garrison | Build established: Commander-Assassin 17722 | -5/Garrison | Triggered checkpoint 17756 | -5/Garrison | Garrison Relay disabled 17821 | -5/Garrison | Discovered new exit (range 10) 18355 | -5/Garrison | Entered Factory 18355 | -5/Factory | Accompanied by 9 allies 18355 | -5/Factory | Discovered new exit (range 16) 18393 | -5/Factory | Identified exit to DSF 18579 | -5/Factory | Identified exit to DSF 18664 | -5/Factory | P-70 Sage assimilated allied Sentinel 6h 18672 | -5/Factory | Reached level 24 19143 | -5/Factory | Fabricated Fission Core? 19422 | -5/Factory | Allied Derelicts emerged from ambush trap array 19514 | -5/Factory | Identified exit to Garrison 19597 | -5/Factory | Spotted B-75 Beast 19626 | -5/Factory | Discovered new exit (range 5) 19665 | -5/Factory | Destroyed B-75 Beast 20097 | -5/Factory | Identified exit to Garrison 20252 | -5/Factory | Build established: Hacker-Gunner 20254 | -5/Factory | Entered Garrison 20282 | -5/Garrison | Triggered checkpoint 20509 | -5/Garrison | Spotted B-75 Beast 20520 | -5/Garrison | Triggered checkpoint 20526 | -5/Garrison | Triggered checkpoint 20638 | -5/Garrison | Destroyed B-75 Beast 20638 | -5/Garrison | Triggered checkpoint 20792 | -5/Garrison | Triggered checkpoint 20898 | -5/Garrison | Discovered new exit (range 75) 20898 | -5/Garrison | Discovered new exit (range 24) 20898 | -5/Garrison | Discovered new exit (range 71) 21003 | -5/Garrison | Triggered checkpoint 21044 | -5/Garrison | Triggered checkpoint 21076 | -5/Garrison | Garrison Relay disabled 21105 | -5/Garrison | Learned Factory security intel 21377 | -5/Garrison | Build established: Hacker-Assassin 21445 | -5/Garrison | Triggered checkpoint 21467 | -5/Garrison | Garrison Relay disabled 21600 | -5/Garrison | Triggered checkpoint 21625 | -5/Garrison | Garrison Relay disabled 21742 | -5/Garrison | Spotted B-75 Beast 21778 | -5/Garrison | Allies destroyed B-75 Beast 22168 | -5/Garrison | Triggered checkpoint 22202 | -5/Garrison | Triggered checkpoint 22238 | -5/Garrison | Expanded RIF knowledge: Robot Detection 22260 | -5/Garrison | Garrison Relay disabled 22260 | -5/Garrison | Reached level 25 22287 | -5/Garrison | Garrison Relay disabled 22446 | -5/Garrison | Entered Factory 22446 | -4/Factory | Accompanied by 5 allies 22551 | -4/Factory | Upgraded with Weapon slot (x1) 22629 | -4/Factory | Discovered new exit (range 8) 22696 | -4/Factory | First assault squad dispatched 22875 | -4/Factory | Destroyed 8 combat bots 23090 | -4/Factory | Sucked down chute 23090 | -4/Factory | Entered Waste 23097 | -4/Waste | Found Prototype Reactor 23097 | -4/Waste | Identified Zero-point Reactor 23105 | -4/Waste | 1 allies followed down the chute 23108 | -4/Waste | Spotted C-40 Crusher 23136 | -4/Waste | Spotted C-40 Crusher 23136 | -4/Waste | Spotted C-40 Crusher 23137 | -4/Waste | Destroyed C-40 Crusher 23141 | -4/Waste | Spotted C-40 Crusher 23178 | -4/Waste | Spotted C-40 Crusher 23205 | -4/Waste | Spotted C-40 Crusher 23239 | -4/Waste | Discovered new exit (range 10) 23252 | -4/Waste | Entered Factory 23661 | -4/Factory | Reached level 26 23970 | -4/Factory | Garrison activated, responded to threat 24095 | -4/Factory | Garrison activated, responded to threat 24335 | -4/Factory | Identified exit to Garrison 25588 | -4/Factory | Discovered new exit (range 6) 25629 | -4/Factory | Identified exit to Garrison 25820 | -4/Factory | Entered Garrison 25893 | -4/Garrison | Triggered checkpoint 25916 | -4/Garrison | Garrison Relay disabled 25992 | -4/Garrison | Triggered checkpoint 25994 | -4/Garrison | Reached level 27 26014 | -4/Garrison | Spotted B-86 Titan 26020 | -4/Garrison | Triggered checkpoint 26023 | -4/Garrison | Destroyed B-86 Titan 26056 | -4/Garrison | Triggered checkpoint 26058 | -4/Garrison | Triggered checkpoint 26208 | -4/Garrison | Triggered checkpoint 26273 | -4/Garrison | Found Enh. Force Lance 26347 | -4/Garrison | Expanded RIF knowledge: Structural Interface 26360 | -4/Garrison | Triggered checkpoint 26371 | -4/Garrison | Garrison Relay disabled 26426 | -4/Garrison | Discovered new exit (range 10) 26582 | -4/Garrison | Discovered new exit (range 15) 26669 | -4/Garrison | Triggered checkpoint 26693 | -4/Garrison | Garrison Relay disabled 26908 | -4/Garrison | Triggered checkpoint 26933 | -4/Garrison | Garrison Relay disabled 27018 | -4/Garrison | Found embedded Infiltrators 27036 | -4/Garrison | Discovered new exit (range 3) 27226 | -4/Garrison | Entered Factory 27226 | -4/Factory | Accompanied by 14 allies 27547 | -4/Factory | Build established: Commander-Assassin 27691 | -4/Factory | Fabricated Adv. Force Field (x2) 27969 | -4/Factory | Repaired Broken Rnf. Quantum Reactor? 27976 | -4/Factory | First assault squad dispatched 28170 | -4/Factory | Identified exit to Upper Caves 28274 | -4/Factory | Discovered new exit (range 6) 28499 | -4/Factory | Reached level 28 28720 | -4/Factory | Build established: Hacker-Assassin 29766 | -4/Factory | Entered Upper Caves 29774 | -4/Upper Caves | Learned Research non-interactive machine intel 29804 | -4/Upper Caves | Learned location of 1 exit from Research 30007 | -4/Upper Caves | Spotted B-86 Titan 30054 | -4/Upper Caves | Build established: Hacker-Executioner 30305 | -4/Upper Caves | Encountered a Warlord checkpoint 30420 | -4/Upper Caves | Discovered new exit (range 15) 30442 | -4/Upper Caves | Build established: Hacker-Mutant 30728 | -4/Upper Caves | Destroyed B-86 Titan 30977 | -4/Upper Caves | Entered another Upper Caves area 30977 | -4/Upper Caves | Accompanied by 1 ally 30992 | -4/Upper Caves | Learned Research garrison access intel 31010 | -4/Upper Caves | Build established: Hacker-Executioner 31011 | -4/Upper Caves | Learned Research emergency access door positions 31043 | -4/Upper Caves | Discovered new exit (range 7) 31234 | -4/Upper Caves | Destroyed 7 combat bots 31504 | -4/Upper Caves | Build established: Hacker-Gunner 31803 | -4/Upper Caves | Attracted the attention of an 0b10 outpost 31871 | -4/Upper Caves | Attracted the attention of an 0b10 checkpoint 32105 | -4/Upper Caves | Build established: Hacker-Executioner 32211 | -4/Upper Caves | Learned location of Armory (-3) 32215 | -4/Upper Caves | Discovered new exit (range 5) 32287 | -4/Upper Caves | Entered Warlord 32287 | -4/Warlord | Accompanied by 3 allies 32374 | -4/Warlord | Discovered new exit (range 8) 32414 | -4/Warlord | System corruption cleaned by Quarantine Array 32419 | -4/Warlord | RIF detected upon attempting to enter Warlord's base 32419 | -4/Warlord | Attacked by Warlord forces 32535 | -4/Warlord | Entered Proximity Caves 32535 | -3/Proximity Caves | Accompanied by 3 allies 32651 | -3/Proximity Caves | P-80 Master assimilated allied Warden 7a 33081 | -3/Proximity Caves | Build established: Hacker-Gunner 33260 | -3/Proximity Caves | Received a Behemoth hack from an annoying Tinkerer 33368 | -3/Proximity Caves | Discovered new exit (range 15) 33418 | -3/Proximity Caves | Acquired the password to a Derelict Tinkerer's latest research 33433 | -3/Proximity Caves | Found Prototype Special Weapon 33433 | -3/Proximity Caves | Identified Molecular Deconstructor 33520 | -3/Proximity Caves | Found Alien Artifact 33520 | -3/Proximity Caves | Identified Dimensional Node Initializer 33520 | -3/Proximity Caves | Initialized slip node 33742 | -3/Proximity Caves | Entered Research 33742 | -3/Research | Accompanied by 1 ally 33743 | -3/Research | Identified exit to Research 33744 | -3/Research | Reached level 29 33745 | -3/Research | Loaded intel: 68 non-interactive machine locations 33746 | -3/Research | Loaded intel: 4 garrison access locations 33803 | -3/Research | Identified exit to Garrison 33809 | -3/Research | Entered Garrison 33809 | -3/Garrison | Accompanied by 1 ally 33828 | -3/Garrison | Triggered checkpoint 34040 | -3/Garrison | Triggered checkpoint 34120 | -3/Garrison | Garrison Relay disabled 34223 | -3/Garrison | Q-Series assembled to engage unique threat in Research 34438 | -3/Garrison | Triggered checkpoint 34508 | -3/Garrison | Garrison Relay disabled 34600 | -3/Garrison | Triggered checkpoint 34605 | -3/Garrison | Triggered checkpoint 34628 | -3/Garrison | Triggered checkpoint 34747 | -3/Garrison | Discovered new exit (range 3) 34772 | -3/Garrison | Triggered checkpoint 34815 | -3/Garrison | Garrison Relay disabled 34848 | -3/Garrison | Reached level 30 35056 | -3/Garrison | Triggered checkpoint 35162 | -3/Garrison | Triggered checkpoint 35165 | -3/Garrison | Expanded RIF knowledge: Threat Obfuscation 35385 | -3/Garrison | Discovered new exit (range 10) 35612 | -3/Garrison | Discovered new exit (range 10) 35650 | -3/Garrison | Triggered checkpoint 35675 | -3/Garrison | Garrison Relay disabled 35884 | -3/Garrison | Entered Research 35884 | -3/Research | Accompanied by 4 allies 36134 | -3/Research | First assault squad dispatched 36206 | -3/Research | Build established: Hacker-Assassin 36323 | -3/Research | Spotted B-86 Titan 36332 | -3/Research | Destroyed B-86 Titan 36385 | -3/Research | Garrison activated, responded to threat 36419 | -3/Research | Identified exit to Garrison 36422 | -3/Research | Entered Garrison 36422 | -3/Garrison | Accompanied by 4 allies 36444 | -3/Garrison | P-80 Master assimilated allied Warden 8e 36524 | -3/Garrison | Triggered checkpoint 36557 | -3/Garrison | Garrison Relay disabled 36565 | -3/Garrison | Found embedded Infiltrators 36612 | -3/Garrison | Heavy support dispatched to Research 36636 | -3/Garrison | Triggered checkpoint 36654 | -3/Garrison | Triggered checkpoint 36664 | -3/Garrison | Triggered checkpoint 36711 | -3/Garrison | Destroyed 10 combat bots 36956 | -3/Garrison | Discovered exit to Research (range 10) 36993 | -3/Garrison | Triggered checkpoint 37047 | -3/Garrison | Garrison Relay disabled 37118 | -3/Garrison | Spotted B-90 Cyclops 37129 | -3/Garrison | Destroyed B-90 Cyclops 37169 | -3/Garrison | Rewired B-86 Titan 37170 | -3/Garrison | Rewired B-90 Cyclops 37337 | -3/Garrison | Spotted B-86 Titan 37348 | -3/Garrison | Destroyed B-86 Titan 37572 | -3/Garrison | Triggered checkpoint 37646 | -3/Garrison | Expanded RIF knowledge: Threat Obfuscation 37704 | -3/Garrison | Garrison Relay disabled 37775 | -3/Garrison | Discovered exit to Research (range 16) 37813 | -3/Garrison | Reached level 31 38072 | -3/Garrison | Triggered checkpoint 38108 | -3/Garrison | Triggered checkpoint 38138 | -3/Garrison | Expanded RIF knowledge: Watcher Feeds 38401 | -3/Garrison | Discovered exit to Research (range 11) 38541 | -3/Garrison | Garrison Relay disabled 38588 | -3/Garrison | Heavy support dispatched to Research 38622 | -3/Garrison | Discovered exit to Research (range 68) 38622 | -3/Garrison | Discovered exit to Research (range 75) 38622 | -3/Garrison | Discovered exit to Research (range 24) 38661 | -3/Garrison | Triggered checkpoint 38706 | -3/Garrison | Triggered checkpoint 38752 | -3/Garrison | Heavy support dispatched to Research 38872 | -3/Garrison | Entered Research 38872 | -2/Research | Accompanied by 7 allies 38888 | -2/Research | Identified exit to DSF 38896 | -2/Research | Entered DSF 38896 | -2/DSF | Accompanied by 7 allies 38929 | -2/DSF | Additional patrols routed to DSF 38954 | -2/DSF | Reached level 32 39058 | -2/DSF | Discovered new exit (range 16) 39133 | -2/DSF | Sterilization system engaged 39153 | -2/DSF | Ambient heat levels rising (+10) 39168 | -2/DSF | Ambient heat levels rising (+10) 39183 | -2/DSF | Ambient heat levels rising (+10) 39198 | -2/DSF | Ambient heat levels rising (+10) 39213 | -2/DSF | Ambient heat levels rising (+10) 39226 | -2/DSF | Entered Access 39226 | -1/Access | Accompanied by 5 allies 39228 | -1/Access | Reached level 33 39234 | -1/Access | Build established: Hacker-Executioner 40050 | -1/Access | Build established: Commander-Executioner 41465 | -1/Access | Build established: Hacker-Assassin 41546 | -1/Access | Reached level 34 41550 | -1/Access | Upgraded with Utility slot (x1) 43465 | -1/Access | Discovered new exit (range 6) 43474 | -1/Access | Identified exit to Surface 43480 | *** | Escaped! Last Messages --------------- 43417_ Used Protomatter to restore core integrity (+201) 43418_ Acquired 13 matter. 43418_ K-01 Serf collects debris. 43423_ Used Protomatter to restore part integrity (+62) 43425_ K-01 Serf collects debris. 43436_ K-01 Serf cleans the Terminal. 43438_ K-01 Serf collects debris. 43443_ Acquired 78 matter. 43446_ Acquired 4 matter. 43447_ K-01 Serf cleans the Terminal. 43453_ Acquired 61 matter. 43453_ K-01 Serf cleans the Terminal. 43455_ System corrupted: Matter fused (-5). 43461_ Connecting with Terminal... >>Open(Door) Sealed Barrier opened. 43465_ The Access Shell folds into the floor. 43465_ EXIT=FOUND 43474_ EXIT=IDENTIFIED: SURFACE [Achievement: Victory By Combat] Map ----- +----------------------------------------------------+ | ??????# ## #????????????????????????? | | ??????# ## #????????????????????????? | | ####### ## #????????????????????????? | | # #############"#??????????? | | # / ????? | | # ##############???????????? | | + #????????????????????????? | | # #????????????????????????? | | # #????????????????????????? | | ##############??????????????????? ????? | | ########################## ] #??? | | [% +??? | | """ """ % % #??? | | """G""" ######### ""#####+#+###+##????? | | #########+#######???# ""#?????????????????? | | # #???# ""#?????????????????? | | # #???# T#?????????????????? | | # #???# ""#?????????????????? | | # """"" #???# ""#?????????????????? | | # """"" #??## ""##????????????????? | | # """"" #??# #????????????????? | | # """"" #??## ##?????????????Y??? | | # """"" #???# #?????????????????? | | # """"" #???# #?????????????????? | | # #???# #?????????????????? | | # #???# @" #?????????????????? | | # #???# "" #?????????????????? | | #######+#########???# #?????????????????? | | ??????# #???????????# #?????????????????? | | ??????# #???????????# #?????????????????? | | #######+#####???????#""""""""""#?????????????????? | | #????????????????????????????????????? | | #????????????????????????????????????? | | #????????????????????????????????????? | | #????????????????????????????????????? | | #?????????BB????BB???????????????????? | | """"" #?????????BB????BB???????????????????? | | """""""" #????????????????????????????????????? | | """""""" #????????????????????????????????????? | | """"" #????????????????????????????????????? | | #????????????????????????????????????? | | #???????????????#????????????????????? | | #?##?????????? #????????????????????? | | ######+################# #????????????????????? | | +????????????????????? | | #????????????????????? | | #????????????????????? | | #????????????????????? | | #############+########## #????????????????????? | | #??????# ##?? #????????????????????? | +----------------------------------------------------+ Best States ------------- Heat Dissipation 153 Coolant Potential 65 Energy Generation 67 Energy Capacity 600 Matter Stores 700 Matter Capacity 700 Sight Range 17 Robot Scan Range 16 Terrain Scan Density 10 Jamming Range 16 Power Amplification 30 Additional Mass Support 12 EM Shielding 3 Armor Coverage 450 Resistance: KI 40 Resistance: TH 45 Resistance: EX 30 Resistance: EM 45 Resistance: I 20 Resistance: S 20 Resistance: P 20 Propulsion Shielding 66 Weapon Cycling 30 Phase Shifting 15 Evasion (%) 55 Targeting Accuracy 8 Melee Accuracy 5 Target Analysis 8 Armor Integrity Analysis 40 Recoil Reduction 12 Kinecelleration 30 Offensive Hacking 25 Defensive Hacking 5 Relay Coupler Types 4 Relay Coupler Value 255 Trap Extractor Capacity 6 Item Schematics ----------------- Mak. Sword | -9/Materials | Scanalyzed Adv. Treads | -9/Materials | Scanalyzed Arm. Huge Wheel | -8/Materials | Scanalyzed Rnf. Ion Engine | -7/Factory | Scanalyzed Gatling Laser | -7/Factory | Scanalyzed Adv. Signal Interpreter | -7/Factory | Hacked Fission Core | -7/Factory | Hacked Remote Datajack | -6/Factory | Scanalyzed Imp. Cooling System | -6/Factory | Scanalyzed Armor Integrity Analyzer | -6/Factory | Scanalyzed Dynamic Insulation System | -5/Factory | Scanalyzed Lance | -5/Factory | Scanalyzed Imp. Dynamic Insulation System | -5/Factory | Scanalyzed Imp. Phase Shifter | -4/Factory | Scanalyzed Adv. Heat Sink | -4/Factory | Scanalyzed Robot Schematics ------------------ None Fabricated ------------ Adv. Heavy Treads | x2 | -6/Factory | Preloaded Fission Core | x2 | -5/Factory Adv. Force Field | x2 | -4/Factory | Preloaded Alien Tech Used ----------------- Dimensional Node Initializer Achievements -------------- Assimilation Complete Beloved Generalissimo Great Explorer Pwned Victory By Combat Challenges ------------ None RPGLIKE | -11 -10 -10 -9 -9 -9 -8 -8 -8 -8 -7 -7 -7 -7 -6 -6 -5 -5 -5 -5 -4 -4 -4 -4 -4 -4 -4 -4 -3 -3 -3 -3 -3 -2 -2 -1 --------- Run | Jun Mat Min Mat Min Exi Min Mat Sto Gar Fac Gar Fac Gar Fac Gar Fac Gar Fac Gar Fac Was Fac Gar Fac Upp Upp War Pro Res Gar Res Gar Res DSF Acc Levels Raised 33 | . . 1 5 1 . 1 2 1 1 2 . 1 1 2 1 2 1 1 1 . . 1 1 1 . . . . 1 1 . 1 . 1 2 XP Earned 53826 | 4000 1180 1745 6465 1442 243 2045 2413 1462 2025 2385 696 628 1610 2990 1774 3302 1973 723 953 1287 67 1311 1089 833 101 282 57 458 685 1770 275 976 685 753 3143 XP Spent 53445 | 3650 . 1825 7500 1500 . 1500 3010 1500 1500 3015 . 1475 . 4500 1475 1460 3060 1300 . 1700 . 1450 1580 1500 . . . . 1500 1485 . 1440 . 1500 3020 Upgrades 100 | 6 . 4 13 3 . 1 8 2 3 6 . 5 . 3 5 4 6 1 . 1 . 5 8 2 . . . . 2 4 . 3 . 1 4 Power Slot 1 | . . 1 . . . . . . . . . . . . . . . . . . . . . . . . . . . . . . . . . Propulsion Slot 5 | 1 . 1 1 . . . 1 . . . . . . 1 . . . . . . . . . . . . . . . . . . . . . Utility Slot 6 | 3 . . 1 . . . . . . . . . . 1 . . . . . . . . . . . . . . . . . . . . 1 Weapon Slot 5 | 1 . . 2 . . . . . 1 . . . . . . . . . . 1 . . . . . . . . . . . . . . . Core Integrity 11 | . . 1 . . . . 1 . 2 1 . . . . . 2 . . . . . . 3 . . . . . . 1 . . . . . Heat Dissipation 17 | . . . 5 . . . . . . . . . . . . . 3 . . . . . 3 . . . . . . 2 . 2 . . 2 Energy Generation 1 | . . . . . . . . . . . . . . . . . . . . . . . . . . . . . . . . . . . 1 Matter Storage 8 | . . . . . . . . . . . . . . . 2 . 1 . . . . 4 1 . . . . . . . . . . . . Mass Support 1 | . . . . . . . . . . . . . . . . 1 . . . . . . . . . . . . . . . . . . . Inventory Capacity 7 | 1 . 1 2 1 . 1 . . . . . . . . . . 1 . . . . . . . . . . . . . . . . . . Sight Range 1 | . . . . . . . . . . . . . . . . . . . . . . . . 1 . . . . . . . . . . . Sensor Range 5 | . . . . 1 . . 2 . . . . 1 . . 1 . . . . . . . . . . . . . . . . . . . . Ranged Accuracy 12 | . . . 2 . . . 1 2 . 2 . . . 1 . 1 . 1 . . . . . 1 . . . . . . . . . 1 . Hack Attack % 3 | . . . . . . . . . . . . 3 . . . . . . . . . . . . . . . . . . . . . . . Hack Defense % 1 | . . . . . . . . . . . . . . . . . . . . . . . 1 . . . . . . . . . . . . KI Resistance % 4 | . . . . . . . 1 . . 1 . . . . 1 . . . . . . . . . . . . . 1 . . . . . . TH Resistance % 4 | . . . . . . . 1 . . . . . . . 1 . 1 . . . . . . . . . . . 1 . . . . . . EX Resistance % 2 | . . . . . . . . . . . . 1 . . . . . . . . . 1 . . . . . . . . . . . . . KI Damage % 3 | . . . . 1 . . 1 . . . . . . . . . . . . . . . . . . . . . . 1 . . . . . TH Damage % 3 | . . . . . . . . . . 2 . . . . . . . . . . . . . . . . . . . . . 1 . . . Protomatter Created 8502 | . 39 54 394 67 . 94 51 105 287 322 131 116 336 665 447 164 213 140 442 184 89 328 234 885 25 270 . 61 . 555 129 707 . 58 910 Integrity Restored 15520 | . 63 162 624 200 . 177 153 138 630 298 84 293 751 860 499 555 771 685 873 360 . 846 1174 811 45 333 . 179 . 1209 153 1249 . 103 1242 Core 11419 | . 63 162 444 197 . 177 153 138 342 245 36 163 588 678 351 304 592 461 667 223 . 846 760 328 38 264 . 128 . 923 153 930 . 80 985 Parts 4101 | . . . 180 3 . . . . 288 53 48 130 163 182 148 251 179 224 206 137 . . 414 483 7 69 . 51 . 286 . 319 . 23 257 Protomatter Decayed 9826 | . . . 177 . . . . 142 419 220 101 318 159 491 688 614 331 424 495 207 . 180 408 914 44 375 . . . 1058 152 775 . 169 965 Game ------ Seed ArmoredNeutronPropulsion Manual? 0 Play Time 09:04:21 Cumulative 77.3 hours Start 2023.10.07 @ 08:56:28 End 2023.10.08 @ 15:06:19 Sessions 5 Manual Loads 0 Difficulty Adventurer Special Mode Winter2019/RPGLIKE Game No. 35 Rogue 25 Adventurer 10 Explorer 0 Win Type 0 Total 2 Types 2/0/0/0/0/0/0/0/0 Lore% 45 Gallery% 57 Achievement% 46 Wizard Run 0 Options --------- ASCII 0 Keyboard 1 Movement Vi Keybinds 0 Fullscreen 2 Font 18/Terminus Map View 76x50 Tactical HUD 1 Map Filters NONE Filters NONE Steam X RUN: 95d8b632-4f8a-479b-a57d-97b692bcce58